Workbook

Sheet Data Input
A1: No | B1: Yacht | C1: Skipper | D1: Length | E1: H/C | F1: P | G1: Class | I1: Start | L1: Out 1 | O1: In 1 | R1: Out 2 | U1: In 2 | X1: Finish | AB1: Elapsed | AE1: Pos | AH1: Corrected | AK1: Pos | AM1: Bridge1 | AN1: Bridge 2 | AO1: Bridge T | AP1: T | AQ1: T-B elapsed | AR1: Corr
H2: H | I2: M | J2: S | K2: H | L2: M | M2: S | N2: H | O2: M | P2: S | Q2: H | R2: M | S2: S | T2: H | U2: M | V2: S | W2: H | X2: M | Y2: S | AA2: H | AB2: M | AC2: S | AG2: H | AH2: M | AI2: S | AM2: Seconds | AN2: Seconds | AO2: Seconds | AP2: Seconds | AQ2: Seconds | AR2: Seconds
A3: 6 | B3: Dragonfly | C3: S Simpson | D3: 38 | E3: -13 | F3: W | G3: =IF(D3="","",IF(D3<25,"C",IF(D3<28.01,"B","A"))) -> A | H3: 9 | I3: 45 | J3: 0 | K3: 10 | L3: 59 | M3: 46 | N3: 11 | O3: 29 | P3: 20 | AA3: =INT(AQ3/3600) -> 10 | AB3: =INT((AQ3-AA3*3600)/60) -> 14 | AC3: =AQ3-(AA3*3600+AB3*60) -> 34 | AE3: =+AT3 -> W | AG3: =INT(AR3/3600) -> 8 | AH3: =INT((AR3-AG3*3600)/60) -> 54 | AI3: =AR3-(AG3*3600+AH3*60) -> 40.38 | AK3: =+AW3 -> W | AM3: =(P3+O3*60+N3*3600)-(M3+L3*60+K3*3600) -> 1774 | AN3: =(V3+U3*60+T3*3600)-(S3+R3*60+Q3*3600) -> 0 | AO3: =AM3+AN3 -> 1774 | AP3: =(Y3+X3*60+W3*3600)-(J3+I3*60+H3*3600) -> -35100 | AQ3: =ABS(AP3-AO3) -> 36874 | AR3: =AQ3*(0.01*(100+E3)) -> 32080.38 | AS3: =+IF(F3="",AQ3,500000) -> 500000 | AT3: =IF(F3="",+RANK(AS3,$AS$3:$AS$41,1),+F3) -> W | AU3: =+IF(AT3<4,"Trophy","") ->  | AV3: =+IF(F3="",AR3,500000) -> 500000 | AW3: =IF(F3="",+RANK(AV3,$AV$3:$AV$41,1),+F3) -> W | AX3: =+IF(AW3<4,"Trophy","") -> 
A4: 10 | B4: Flight | C4: J Farrow | D4: 29.9 | E4: -8 | G4: A | H4: 8 | I4: 30 | J4: 0 | K4: 10 | L4: 0 | M4: 37 | N4: 10 | O4: 14 | P4: 14 | Q4: 11 | R4: 49 | S4: 17 | T4: 12 | U4: 2 | V4: 3 | W4: 14 | X4: 6 | Y4: 41 | AA4: 5 | AB4: 10 | AC4: 18 | AE4: 16 | AG4: 4 | AH4: 45 | AI4: 28.56 | AK4: 14 | AM4: 817 | AN4: 766 | AO4: 1583 | AP4: 20201 | AQ4: 18618 | AR4: 17128.56 | AS4: 18618 | AT4: 16 | AV4: 17128.56 | AW4: 14
A5: 22 | B5: Moonraker | C5: P Jeckells | D5: 29.5 | E5: 2 | F5: DNS | G5: A | AA5: 0 | AB5: 0 | AC5: 0 | AE5: DNS | AG5: 0 | AH5: 0 | AI5: 0 | AK5: DNS | AM5: 0 | AN5: 0 | AO5: 0 | AP5: 0 | AQ5: 0 | AR5: 0 | AS5: 500000 | AT5: DNS | AV5: 500000 | AW5: DNS
A6: 25 | B6: Melody | C6: M Wells | D6: 26 | E6: -10 | G6: B | H6: 8 | I6: 30 | J6: 0 | K6: 9 | L6: 49 | M6: 52 | N6: 9 | O6: 54 | P6: 44 | Q6: 11 | R6: 39 | S6: 38 | T6: 11 | U6: 52 | V6: 58 | W6: 14 | X6: 18 | Y6: 9 | AA6: 5 | AB6: 29 | AC6: 57 | AE6: 18 | AG6: 4 | AH6: 56 | AI6: 57.3 | AK6: 18 | AM6: 292 | AN6: 800 | AO6: 1092 | AP6: 20889 | AQ6: 19797 | AR6: 17817.3 | AS6: 19797 | AT6: 18 | AV6: 17817.3 | AW6: 18
A7: 52 | B7: Maidie | C7: M Barnes | D7: 43.2 | E7: 13 | F7: DNS | G7: A | AA7: 0 | AB7: 0 | AC7: 0 | AE7: DNS | AG7: 0 | AH7: 0 | AI7: 0 | AK7: DNS | AM7: 0 | AN7: 0 | AO7: 0 | AP7: 0 | AQ7: 0 | AR7: 0 | AS7: 500000 | AT7: DNS | AV7: 500000 | AW7: DNS
A8: 79 | B8: Daisy | C8: T Ford | D8: 22 | E8: -21 | G8: C | H8: 7 | I8: 30 | J8: 0 | K8: 9 | L8: 12 | M8: 14 | N8: 9 | O8: 17 | P8: 54 | Q8: 11 | R8: 39 | S8: 30 | T8: 11 | U8: 57 | V8: 42 | W8: 14 | X8: 53 | Y8: 28 | AA8: 6 | AB8: 59 | AC8: 36 | AE8: 21 | AG8: 5 | AH8: 31 | AI8: 29.04 | AK8: 21 | AM8: 340 | AN8: 1092 | AO8: 1432 | AP8: 26608 | AQ8: 25176 | AR8: 19889.04 | AS8: 25176 | AT8: 21 | AV8: 19889.04 | AW8: 21
A9: 87 | B9: Modwena | C9: M Cassidy | D9: 24.8 | E9: -19 | G9: C | H9: 8 | I9: 30 | J9: 0 | K9: 10 | L9: 1 | M9: 29 | N9: 10 | O9: 17 | P9: 9 | Q9: 11 | R9: 59 | S9: 23 | T9: 12 | U9: 38 | V9: 26 | W9: 15 | X9: 1 | Y9: 45 | AA9: 5 | AB9: 37 | AC9: 2 | AE9: 19 | AG9: 4 | AH9: 32 | AI9: 59.82 | AK9: 4 | AM9: 940 | AN9: 2343 | AO9: 3283 | AP9: 23505 | AQ9: 20222 | AR9: 16379.82 | AS9: 20222 | AT9: 19 | AV9: 16379.82 | AW9: 4
A10: 109 | B10: Kingfisher | C10: J Flatman | D10: 24.5 | E10: -19 | F10: W | G10: C | H10: 9 | I10: 0 | J10: 0 | K10: 10 | L10: 33 | M10: 24 | N10: 10 | O10: 37 | P10: 0 | Q10: 12 | R10: 48 | S10: 9 | T10: 12 | U10: 54 | V10: 33 | AA10: 9 | AB10: 10 | AC10: 0 | AE10: W | AG10: 7 | AH10: 25 | AI10: 30 | AK10: W | AM10: 216 | AN10: 384 | AO10: 600 | AP10: -32400 | AQ10: 33000 | AR10: 26730 | AS10: 500000 | AT10: W | AV10: 500000 | AW10: W
A11: 141 | B11: Nirvana | C11: M Claridge | D11: 20 | E11: -23 | F11: P | G11: C | H11: 8 | I11: 0 | J11: 0 | K11: 9 | L11: 33 | M11: 18 | N11: 9 | O11: 37 | P11: 8 | Q11: 11 | R11: 40 | S11: 26 | T11: 12 | U11: 0 | V11: 20 | W11: 14 | X11: 36 | Y11: 39 | AA11: 6 | AB11: 12 | AC11: 55 | AE11: P | AG11: 4 | AH11: 47 | AI11: 8.75 | AK11: P | AM11: 230 | AN11: 1194 | AO11: 1424 | AP11: 23799 | AQ11: 22375 | AR11: 17228.75 | AS11: 500000 | AT11: P | AV11: 500000 | AW11: P
A12: 152 | B12: Sabrina 2 | C12: J Holmes | D12: 29 | E12: -7 | G12: A | H12: 9 | I12: 0 | J12: 0 | K12: 10 | L12: 21 | M12: 55 | N12: 10 | O12: 35 | P12: 53 | Q12: 12 | R12: 11 | S12: 41 | T12: 12 | U12: 19 | V12: 58 | W12: 14 | X12: 20 | Y12: 2 | AA12: 4 | AB12: 57 | AC12: 47 | AE12: 9 | AG12: 4 | AH12: 36 | AI12: 56.31 | AK12: 7 | AM12: 838 | AN12: 497 | AO12: 1335 | AP12: 19202 | AQ12: 17867 | AR12: 16616.31 | AS12: 17867 | AT12: 9 | AV12: 16616.31 | AW12: 7
A13: 155 | B13: Stratus | C13: J Townley | D13: 22.6 | E13: -17 | F13: W | G13: C | H13: 8 | I13: 30 | J13: 0 | K13: 10 | L13: 0 | M13: 0 | N13: 10 | O13: 14 | P13: 2 | Q13: 11 | R13: 55 | S13: 49 | T13: 12 | U13: 17 | V13: 25 | AA13: 9 | AB13: 5 | AC13: 38 | AE13: W | AG13: 7 | AH13: 32 | AI13: 52.54 | AK13: W | AM13: 842 | AN13: 1296 | AO13: 2138 | AP13: -30600 | AQ13: 32738 | AR13: 27172.54 | AS13: 500000 | AT13: W | AV13: 500000 | AW13: W
A14: 177 | B14: Breeze | C14: M Ellis | D14: 32 | E14: 3 | F14: W | G14: A | H14: 9 | I14: 0 | J14: 0 | K14: 10 | L14: 13 | M14: 0 | N14: 10 | O14: 16 | P14: 25 | Q14: 11 | R14: 42 | S14: 59 | T14: 11 | U14: 55 | V14: 12 | AA14: 9 | AB14: 15 | AC14: 38 | AE14: W | AG14: 9 | AH14: 32 | AI14: 18.14 | AK14: W | AM14: 205 | AN14: 733 | AO14: 938 | AP14: -32400 | AQ14: 33338 | AR14: 34338.14 | AS14: 500000 | AT14: W | AV14: 500000 | AW14: W
A15: 179 | B15: Waxwing | C15: S Clayton | D15: 28 | E15: -8 | G15: B | H15: 8 | I15: 45 | J15: 0 | K15: 10 | L15: 9 | M15: 41 | N15: 10 | O15: 14 | P15: 35 | Q15: 11 | R15: 47 | S15: 5 | T15: 12 | U15: 2 | V15: 42 | W15: 14 | X15: 3 | Y15: 40 | AA15: 4 | AB15: 58 | AC15: 9 | AE15: 10 | AG15: 4 | AH15: 34 | AI15: 17.88 | AK15: 5 | AM15: 294 | AN15: 937 | AO15: 1231 | AP15: 19120 | AQ15: 17889 | AR15: 16457.88 | AS15: 17889 | AT15: 10 | AV15: 16457.88 | AW15: 5
A16: 199 | B16: Morning Calm | C16: W Clark | D16: 26 | E16: -9 | G16: B | H16: 8 | I16: 45 | J16: 0 | K16: 10 | L16: 9 | M16: 34 | N16: 10 | O16: 14 | P16: 55 | Q16: 11 | R16: 49 | S16: 20 | T16: 12 | U16: 1 | V16: 7 | W16: 14 | X16: 9 | Y16: 13 | AA16: 5 | AB16: 7 | AC16: 5 | AE16: 14 | AG16: 4 | AH16: 39 | AI16: 26.75 | AK16: 9 | AM16: 321 | AN16: 707 | AO16: 1028 | AP16: 19453 | AQ16: 18425 | AR16: 16766.75 | AS16: 18425 | AT16: 14 | AV16: 16766.75 | AW16: 9
A17: 217 | B17: Melinda | C17: P Howes | D17: 27.9 | E17: 1 | G17: B | H17: 8 | I17: 30 | J17: 0 | K17: 9 | L17: 46 | M17: 17 | N17: 9 | O17: 50 | P17: 12 | Q17: 11 | R17: 26 | S17: 15 | T17: 11 | U17: 37 | V17: 10 | W17: 13 | X17: 43 | Y17: 29 | AA17: 4 | AB17: 58 | AC17: 39 | AE17: 11 | AG17: 5 | AH17: 1 | AI17: 38.19 | AK17: 19 | AM17: 235 | AN17: 655 | AO17: 890 | AP17: 18809 | AQ17: 17919 | AR17: 18098.19 | AS17: 17919 | AT17: 11 | AV17: 18098.19 | AW17: 19
A18: 218 | B18: Mystery | C18: M Ford | D18: 26 | E18: -9 | G18: B | H18: 8 | I18: 45 | J18: 0 | K18: 10 | L18: 14 | M18: 33 | N18: 10 | O18: 18 | P18: 45 | Q18: 11 | R18: 53 | S18: 13 | T18: 12 | U18: 16 | V18: 3 | W18: 14 | X18: 20 | Y18: 56 | AA18: 5 | AB18: 8 | AC18: 54 | AE18: 15 | AG18: 4 | AH18: 41 | AI18: 5.94 | AK18: 12 | AM18: 252 | AN18: 1370 | AO18: 1622 | AP18: 20156 | AQ18: 18534 | AR18: 16865.94 | AS18: 18534 | AT18: 15 | AV18: 16865.94 | AW18: 12
A19: 219 | B19: Farthing | C19: M Farrar | D19: 36 | E19: 3 | F19: W | G19: A | H19: 9 | I19: 30 | J19: 0 | K19: 10 | L19: 39 | M19: 12 | N19: 10 | O19: 41 | P19: 54 | Q19: 12 | R19: 6 | S19: 53 | T19: 12 | U19: 16 | V19: 26 | AA19: 9 | AB19: 42 | AC19: 15 | AE19: W | AG19: 9 | AH19: 59 | AI19: 43.05 | AK19: W | AM19: 162 | AN19: 573 | AO19: 735 | AP19: -34200 | AQ19: 34935 | AR19: 35983.05 | AS19: 500000 | AT19: W | AV19: 500000 | AW19: W
A20: 224 | B20: Anna | C20: R Branscombe | D20: 25 | E20: -10 | G20: B | H20: 8 | I20: 45 | J20: 0 | K20: 10 | L20: 9 | M20: 53 | N20: 10 | O20: 15 | P20: 18 | Q20: 11 | R20: 51 | S20: 35 | T20: 12 | U20: 3 | V20: 56 | W20: 14 | X20: 13 | Y20: 58 | AA20: 5 | AB20: 11 | AC20: 12 | AE20: 17 | AG20: 4 | AH20: 40 | AI20: 4.8 | AK20: 10 | AM20: 325 | AN20: 741 | AO20: 1066 | AP20: 19738 | AQ20: 18672 | AR20: 16804.8 | AS20: 18672 | AT20: 17 | AV20: 16804.8 | AW20: 10
A21: 240 | B21: Avocet | C21: R Branford | D21: 28 | E21: -16 | F21: W | G21: B | H21: 9 | I21: 30 | J21: 0 | K21: 10 | L21: 47 | M21: 10 | N21: 10 | O21: 51 | P21: 4 | AA21: 9 | AB21: 33 | AC21: 54 | AE21: W | AG21: 8 | AH21: 2 | AI21: 4.56 | AK21: W | AM21: 234 | AN21: 0 | AO21: 234 | AP21: -34200 | AQ21: 34434 | AR21: 28924.56 | AS21: 500000 | AT21: W | AV21: 500000 | AW21: W
A22: 244 | B22: Catspaw | C22: B Wilkins | D22: 28 | E22: -4 | G22: B | H22: 8 | I22: 0 | J22: 0 | K22: 9 | L22: 18 | M22: 2 | N22: 9 | O22: 22 | P22: 22 | Q22: 10 | R22: 59 | S22: 36 | T22: 11 | U22: 27 | V22: 37 | W22: 13 | X22: 24 | Y22: 26 | AA22: 4 | AB22: 52 | AC22: 5 | AE22: 8 | AG22: 4 | AH22: 40 | AI22: 24 | AK22: 11 | AM22: 260 | AN22: 1681 | AO22: 1941 | AP22: 19466 | AQ22: 17525 | AR22: 16824 | AS22: 17525 | AT22: 8 | AV22: 16824 | AW22: 11
A23: 262 | B23: Jessie May | C23: S Dugdale | D23: 28 | E23: -5 | G23: B | H23: 10 | I23: 30 | J23: 0 | K23: 11 | L23: 48 | M23: 19 | N23: 11 | O23: 53 | P23: 34 | Q23: 13 | R23: 25 | S23: 20 | T23: 13 | U23: 31 | V23: 8 | W23: 15 | X23: 20 | Y23: 47 | AA23: 4 | AB23: 39 | AC23: 44 | AE23: 7 | AG23: 4 | AH23: 25 | AI23: 44.8 | AK23: 2 | AM23: 315 | AN23: 348 | AO23: 663 | AP23: 17447 | AQ23: 16784 | AR23: 15944.8 | AS23: 16784 | AT23: 7 | AV23: 15944.8 | AW23: 2 | AX23: Trophy
A24: 274 | B24: Elfin | C24: A Bond | D24: 21 | E24: -27 | F24: DNS | G24: C | AA24: 0 | AB24: 0 | AC24: 0 | AE24: DNS | AG24: 0 | AH24: 0 | AI24: 0 | AK24: DNS | AM24: 0 | AN24: 0 | AO24: 0 | AP24: 0 | AQ24: 0 | AR24: 0 | AS24: 500000 | AT24: DNS | AV24: 500000 | AW24: DNS
A25: 323 | B25: Starlight Lady | C25: N.Matthews | D25: 30 | E25: 13 | G25: A | H25: 10 | I25: 30 | J25: 0 | K25: 11 | L25: 38 | M25: 8 | N25: 11 | O25: 43 | P25: 30 | Q25: 13 | R25: 0 | S25: 26 | T25: 13 | U25: 24 | V25: 24 | W25: 15 | X25: 4 | Y25: 21 | AA25: 4 | AB25: 5 | AC25: 1 | AE25: 1 | AG25: 4 | AH25: 36 | AI25: 52.13 | AK25: 6 | AM25: 322 | AN25: 1438 | AO25: 1760 | AP25: 16461 | AQ25: 14701 | AR25: 16612.13 | AS25: 14701 | AT25: 1 | AU25: Trophy | AV25: 16612.13 | AW25: 6
A26: 335 | B26: Firebird | C26: R Richardson | D26: 30 | E26: 1 | F26: DNS | G26: A | AA26: 0 | AB26: 0 | AC26: 0 | AE26: DNS | AG26: 0 | AH26: 0 | AI26: 0 | AK26: DNS | AM26: 0 | AN26: 0 | AO26: 0 | AP26: 0 | AQ26: 0 | AR26: 0 | AS26: 500000 | AT26: DNS | AV26: 500000 | AW26: DNS
A27: 368 | B27: Wandering Rose | C27: Radley | D27: 31 | E27: -2 | G27: A | H27: 9 | I27: 15 | J27: 0 | K27: 10 | L27: 28 | M27: 40 | N27: 10 | O27: 36 | P27: 4 | Q27: 12 | R27: 0 | S27: 55 | T27: 12 | U27: 18 | V27: 23 | W27: 14 | X27: 12 | Y27: 45 | AA27: 4 | AB27: 32 | AC27: 53 | AE27: 4 | AG27: 4 | AH27: 27 | AI27: 25.54 | AK27: 3 | AM27: 444 | AN27: 1048 | AO27: 1492 | AP27: 17865 | AQ27: 16373 | AR27: 16045.54 | AS27: 16373 | AT27: 4 | AV27: 16045.54 | AW27: 3 | AX27: Trophy
A28: 369 | B28: Moonshadow | C28: N Hovey | D28: 31.5 | E28: 4 | G28: A | H28: 8 | I28: 45 | J28: 0 | K28: 10 | L28: 4 | M28: 9 | N28: 10 | O28: 16 | P28: 13 | Q28: 11 | R28: 40 | S28: 27 | T28: 11 | U28: 54 | V28: 30 | W28: 13 | X28: 45 | Y28: 42 | AA28: 4 | AB28: 34 | AC28: 35 | AE28: 5 | AG28: 4 | AH28: 45 | AI28: 34 | AK28: 15 | AM28: 724 | AN28: 843 | AO28: 1567 | AP28: 18042 | AQ28: 16475 | AR28: 17134 | AS28: 16475 | AT28: 5 | AV28: 17134 | AW28: 15
A29: 370 | B29: Glory | C29: C Brown | D29: 35 | E29: -6 | G29: A | H29: 9 | I29: 15 | J29: 0 | K29: 10 | L29: 30 | M29: 15 | N29: 10 | O29: 36 | P29: 32 | Q29: 12 | R29: 3 | S29: 15 | T29: 12 | U29: 34 | V29: 42 | W29: 14 | X29: 30 | Y29: 29 | AA29: 4 | AB29: 37 | AC29: 45 | AE29: 6 | AG29: 4 | AH29: 21 | AI29: 5.1 | AK29: 1 | AM29: 377 | AN29: 1887 | AO29: 2264 | AP29: 18929 | AQ29: 16665 | AR29: 15665.1 | AS29: 16665 | AT29: 6 | AV29: 15665.1 | AW29: 1 | AX29: Trophy
A30: 373 | B30: Meggie | C30: J Tansley | D30: 34.9 | E30: 13 | G30: A | H30: 9 | I30: 0 | J30: 0 | K30: 10 | L30: 13 | M30: 15 | N30: 10 | O30: 16 | P30: 50 | Q30: 11 | R30: 39 | S30: 17 | T30: 11 | U30: 47 | V30: 21 | W30: 13 | X30: 41 | Y30: 0 | AA30: 4 | AB30: 29 | AC30: 21 | AE30: 3 | AG30: 5 | AH30: 4 | AI30: 21.93 | AK30: 20 | AM30: 215 | AN30: 484 | AO30: 699 | AP30: 16860 | AQ30: 16161 | AR30: 18261.93 | AS30: 16161 | AT30: 3 | AU30: Trophy | AV30: 18261.93 | AW30: 20
A31: 400 | B31: Swallow | C31: K Halifax | D31: 26.5 | E31: -7 | G31: B | H31: 8 | I31: 45 | J31: 0 | K31: 10 | L31: 9 | M31: 19 | N31: 10 | O31: 15 | P31: 21 | Q31: 11 | R31: 48 | S31: 11 | T31: 11 | U31: 56 | V31: 38 | W31: 14 | X31: 3 | Y31: 16 | AA31: 5 | AB31: 3 | AC31: 47 | AE31: 13 | AG31: 4 | AH31: 42 | AI31: 31.11 | AK31: 13 | AM31: 362 | AN31: 507 | AO31: 869 | AP31: 19096 | AQ31: 18227 | AR31: 16951.11 | AS31: 18227 | AT31: 13 | AV31: 16951.11 | AW31: 13
A32: 416 | B32: Alice Rose | C32: D Radley | D32: 28.5 | E32: -7 | F32: W | G32: A | H32: 9 | I32: 0 | J32: 0 | K32: 10 | L32: 35 | M32: 1 | N32: 10 | O32: 38 | P32: 25 | Q32: 12 | R32: 8 | S32: 27 | T32: 12 | U32: 18 | V32: 55 | AA32: 9 | AB32: 13 | AC32: 52 | AE32: W | AG32: 8 | AH32: 35 | AI32: 5.76 | AK32: W | AM32: 204 | AN32: 628 | AO32: 832 | AP32: -32400 | AQ32: 33232 | AR32: 30905.76 | AS32: 500000 | AT32: W | AV32: 500000 | AW32: W
A33: 417 | B33: Stellar | C33: T Frary | D33: 31.3 | E33: 17 | G33: A | H33: 8 | I33: 45 | J33: 0 | K33: 9 | L33: 57 | M33: 27 | N33: 10 | O33: 14 | P33: 54 | Q33: 11 | R33: 31 | S33: 41 | T33: 11 | U33: 42 | V33: 0 | W33: 13 | X33: 22 | Y33: 2 | AA33: 4 | AB33: 9 | AC33: 16 | AE33: 2 | AG33: 4 | AH33: 51 | AI33: 38.52 | AK33: 16 | AM33: 1047 | AN33: 619 | AO33: 1666 | AP33: 16622 | AQ33: 14956 | AR33: 17498.52 | AS33: 14956 | AT33: 2 | AU33: Trophy | AV33: 17498.52 | AW33: 16
A34: 418 | B34: Tinkerbell | C34: A Lincoln | D34: 25.2 | E34: -7 | G34: B | H34: 9 | I34: 0 | J34: 0 | K34: 10 | L34: 23 | M34: 52 | N34: 10 | O34: 37 | P34: 14 | Q34: 12 | R34: 10 | S34: 53 | T34: 12 | U34: 19 | V34: 33 | W34: 14 | X34: 21 | Y34: 5 | AA34: 4 | AB34: 59 | AC34: 3 | AE34: 12 | AG34: 4 | AH34: 38 | AI34: 6.99 | AK34: 8 | AM34: 802 | AN34: 520 | AO34: 1322 | AP34: 19265 | AQ34: 17943 | AR34: 16686.99 | AS34: 17943 | AT34: 12 | AV34: 16686.99 | AW34: 8
A35: 429 | B35: Pickle | C35: P Montague | D35: 22.6 | E35: -17 | G35: C | H35: 7 | I35: 45 | J35: 0 | K35: 9 | L35: 12 | M35: 53 | N35: 9 | O35: 18 | P35: 6 | Q35: 11 | R35: 14 | S35: 5 | T35: 11 | U35: 24 | V35: 10 | W35: 13 | X35: 52 | Y35: 12 | AA35: 5 | AB35: 51 | AC35: 54 | AE35: 20 | AG35: 4 | AH35: 52 | AI35: 4.62 | AK35: 17 | AM35: 313 | AN35: 605 | AO35: 918 | AP35: 22032 | AQ35: 21114 | AR35: 17524.62 | AS35: 21114 | AT35: 20 | AV35: 17524.62 | AW35: 17
A42: xx
A44: =COUNT(A3:A43) -> 33

Sheet YNR
I1: Corrected
A2: No | B2: Yacht | C2: Skipper | D2: Length | E2: H/C | F2: P | G2: Class | H2: H | I2: M | J2: S | L2: Pos
A3: 370 | B3: =+VLOOKUP(+$A3,'Data Input'!$A$3:$AX$41,2,FALSE) -> Glory | C3: =+VLOOKUP(+$A3,'Data Input'!$A$3:$AX$41,3,FALSE) -> C Brown | D3: =+VLOOKUP(+$A3,'Data Input'!$A$3:$AX$41,4,FALSE) -> 35 | E3: =+VLOOKUP(+$A3,'Data Input'!$A$3:$AX$41,5,FALSE) -> -6 | F3: =+VLOOKUP(+$A3,'Data Input'!$A$3:$AX$41,6,FALSE) ->  | G3: =+VLOOKUP(+$A3,'Data Input'!$A$3:$AX$41,7,FALSE) -> A | H3: =+VLOOKUP($A3,'Data Input'!$A$3:$AX$41,33,FALSE) -> 4 | I3: =+VLOOKUP($A3,'Data Input'!$A$3:$AX$41,34,FALSE) -> 21 | J3: =+VLOOKUP($A3,'Data Input'!$A$3:$AX$41,35,FALSE) -> 5.1 | L3: =+VLOOKUP($A3,'Data Input'!$A$3:$AX$41,37,FALSE) -> 1
A4: 262 | B4: =+VLOOKUP(+$A4,'Data Input'!$A$3:$AX$41,2,FALSE) -> Jessie May | C4: =+VLOOKUP(+$A4,'Data Input'!$A$3:$AX$41,3,FALSE) -> S Dugdale | D4: =+VLOOKUP(+$A4,'Data Input'!$A$3:$AX$41,4,FALSE) -> 28 | E4: =+VLOOKUP(+$A4,'Data Input'!$A$3:$AX$41,5,FALSE) -> -5 | F4: =+VLOOKUP(+$A4,'Data Input'!$A$3:$AX$41,6,FALSE) -> 0 | G4: =+VLOOKUP(+$A4,'Data Input'!$A$3:$AX$41,7,FALSE) -> B | H4: =+VLOOKUP($A4,'Data Input'!$A$3:$AX$41,33,FALSE) -> 4 | I4: =+VLOOKUP($A4,'Data Input'!$A$3:$AX$41,34,FALSE) -> 25 | J4: =+VLOOKUP($A4,'Data Input'!$A$3:$AX$41,35,FALSE) -> 44.8 | L4: =+VLOOKUP($A4,'Data Input'!$A$3:$AX$41,37,FALSE) -> 2
A5: 368 | B5: =+VLOOKUP(+$A5,'Data Input'!$A$3:$AX$41,2,FALSE) -> Wandering Rose | C5: =+VLOOKUP(+$A5,'Data Input'!$A$3:$AX$41,3,FALSE) -> Radley | D5: =+VLOOKUP(+$A5,'Data Input'!$A$3:$AX$41,4,FALSE) -> 31 | E5: =+VLOOKUP(+$A5,'Data Input'!$A$3:$AX$41,5,FALSE) -> -2 | F5: =+VLOOKUP(+$A5,'Data Input'!$A$3:$AX$41,6,FALSE) -> 0 | G5: =+VLOOKUP(+$A5,'Data Input'!$A$3:$AX$41,7,FALSE) -> A | H5: =+VLOOKUP($A5,'Data Input'!$A$3:$AX$41,33,FALSE) -> 4 | I5: =+VLOOKUP($A5,'Data Input'!$A$3:$AX$41,34,FALSE) -> 27 | J5: =+VLOOKUP($A5,'Data Input'!$A$3:$AX$41,35,FALSE) -> 25.54 | L5: =+VLOOKUP($A5,'Data Input'!$A$3:$AX$41,37,FALSE) -> 3
A6: 87 | B6: =+VLOOKUP(+$A6,'Data Input'!$A$3:$AX$41,2,FALSE) -> Modwena | C6: =+VLOOKUP(+$A6,'Data Input'!$A$3:$AX$41,3,FALSE) -> M Cassidy | D6: =+VLOOKUP(+$A6,'Data Input'!$A$3:$AX$41,4,FALSE) -> 24.8 | E6: =+VLOOKUP(+$A6,'Data Input'!$A$3:$AX$41,5,FALSE) -> -19 | F6: =+VLOOKUP(+$A6,'Data Input'!$A$3:$AX$41,6,FALSE) -> 0 | G6: =+VLOOKUP(+$A6,'Data Input'!$A$3:$AX$41,7,FALSE) -> C | H6: =+VLOOKUP($A6,'Data Input'!$A$3:$AX$41,33,FALSE) -> 4 | I6: =+VLOOKUP($A6,'Data Input'!$A$3:$AX$41,34,FALSE) -> 32 | J6: =+VLOOKUP($A6,'Data Input'!$A$3:$AX$41,35,FALSE) -> 59.82 | L6: =+VLOOKUP($A6,'Data Input'!$A$3:$AX$41,37,FALSE) -> 4
A7: 179 | B7: =+VLOOKUP(+$A7,'Data Input'!$A$3:$AX$41,2,FALSE) -> Waxwing | C7: =+VLOOKUP(+$A7,'Data Input'!$A$3:$AX$41,3,FALSE) -> S Clayton | D7: =+VLOOKUP(+$A7,'Data Input'!$A$3:$AX$41,4,FALSE) -> 28 | E7: =+VLOOKUP(+$A7,'Data Input'!$A$3:$AX$41,5,FALSE) -> -8 | F7: =+VLOOKUP(+$A7,'Data Input'!$A$3:$AX$41,6,FALSE) -> 0 | G7: =+VLOOKUP(+$A7,'Data Input'!$A$3:$AX$41,7,FALSE) -> B | H7: =+VLOOKUP($A7,'Data Input'!$A$3:$AX$41,33,FALSE) -> 4 | I7: =+VLOOKUP($A7,'Data Input'!$A$3:$AX$41,34,FALSE) -> 34 | J7: =+VLOOKUP($A7,'Data Input'!$A$3:$AX$41,35,FALSE) -> 17.88 | L7: =+VLOOKUP($A7,'Data Input'!$A$3:$AX$41,37,FALSE) -> 5
A8: 323 | B8: =+VLOOKUP(+$A8,'Data Input'!$A$3:$AX$41,2,FALSE) -> Starlight Lady | C8: =+VLOOKUP(+$A8,'Data Input'!$A$3:$AX$41,3,FALSE) -> N.Matthews | D8: =+VLOOKUP(+$A8,'Data Input'!$A$3:$AX$41,4,FALSE) -> 30 | E8: =+VLOOKUP(+$A8,'Data Input'!$A$3:$AX$41,5,FALSE) -> 13 | F8: =+VLOOKUP(+$A8,'Data Input'!$A$3:$AX$41,6,FALSE) -> 0 | G8: =+VLOOKUP(+$A8,'Data Input'!$A$3:$AX$41,7,FALSE) -> A | H8: =+VLOOKUP($A8,'Data Input'!$A$3:$AX$41,33,FALSE) -> 4 | I8: =+VLOOKUP($A8,'Data Input'!$A$3:$AX$41,34,FALSE) -> 36 | J8: =+VLOOKUP($A8,'Data Input'!$A$3:$AX$41,35,FALSE) -> 52.13 | L8: =+VLOOKUP($A8,'Data Input'!$A$3:$AX$41,37,FALSE) -> 6
A9: 152 | B9: =+VLOOKUP(+$A9,'Data Input'!$A$3:$AX$41,2,FALSE) -> Sabrina 2 | C9: =+VLOOKUP(+$A9,'Data Input'!$A$3:$AX$41,3,FALSE) -> J Holmes | D9: =+VLOOKUP(+$A9,'Data Input'!$A$3:$AX$41,4,FALSE) -> 29 | E9: =+VLOOKUP(+$A9,'Data Input'!$A$3:$AX$41,5,FALSE) -> -7 | F9: =+VLOOKUP(+$A9,'Data Input'!$A$3:$AX$41,6,FALSE) -> 0 | G9: =+VLOOKUP(+$A9,'Data Input'!$A$3:$AX$41,7,FALSE) -> A | H9: =+VLOOKUP($A9,'Data Input'!$A$3:$AX$41,33,FALSE) -> 4 | I9: =+VLOOKUP($A9,'Data Input'!$A$3:$AX$41,34,FALSE) -> 36 | J9: =+VLOOKUP($A9,'Data Input'!$A$3:$AX$41,35,FALSE) -> 56.31 | L9: =+VLOOKUP($A9,'Data Input'!$A$3:$AX$41,37,FALSE) -> 7
A10: 418 | B10: =+VLOOKUP(+$A10,'Data Input'!$A$3:$AX$41,2,FALSE) -> Tinkerbell | C10: =+VLOOKUP(+$A10,'Data Input'!$A$3:$AX$41,3,FALSE) -> A Lincoln | D10: =+VLOOKUP(+$A10,'Data Input'!$A$3:$AX$41,4,FALSE) -> 25.2 | E10: =+VLOOKUP(+$A10,'Data Input'!$A$3:$AX$41,5,FALSE) -> -7 | F10: =+VLOOKUP(+$A10,'Data Input'!$A$3:$AX$41,6,FALSE) ->  | G10: =+VLOOKUP(+$A10,'Data Input'!$A$3:$AX$41,7,FALSE) -> B | H10: =+VLOOKUP($A10,'Data Input'!$A$3:$AX$41,33,FALSE) -> 4 | I10: =+VLOOKUP($A10,'Data Input'!$A$3:$AX$41,34,FALSE) -> 38 | J10: =+VLOOKUP($A10,'Data Input'!$A$3:$AX$41,35,FALSE) -> 6.99 | L10: =+VLOOKUP($A10,'Data Input'!$A$3:$AX$41,37,FALSE) -> 8
A11: 199 | B11: =+VLOOKUP(+$A11,'Data Input'!$A$3:$AX$41,2,FALSE) -> Morning Calm | C11: =+VLOOKUP(+$A11,'Data Input'!$A$3:$AX$41,3,FALSE) -> W Clark | D11: =+VLOOKUP(+$A11,'Data Input'!$A$3:$AX$41,4,FALSE) -> 26 | E11: =+VLOOKUP(+$A11,'Data Input'!$A$3:$AX$41,5,FALSE) -> -9 | F11: =+VLOOKUP(+$A11,'Data Input'!$A$3:$AX$41,6,FALSE) -> 0 | G11: =+VLOOKUP(+$A11,'Data Input'!$A$3:$AX$41,7,FALSE) -> B | H11: =+VLOOKUP($A11,'Data Input'!$A$3:$AX$41,33,FALSE) -> 4 | I11: =+VLOOKUP($A11,'Data Input'!$A$3:$AX$41,34,FALSE) -> 39 | J11: =+VLOOKUP($A11,'Data Input'!$A$3:$AX$41,35,FALSE) -> 26.75 | L11: =+VLOOKUP($A11,'Data Input'!$A$3:$AX$41,37,FALSE) -> 9
A12: 224 | B12: =+VLOOKUP(+$A12,'Data Input'!$A$3:$AX$41,2,FALSE) -> Anna | C12: =+VLOOKUP(+$A12,'Data Input'!$A$3:$AX$41,3,FALSE) -> R Branscombe | D12: =+VLOOKUP(+$A12,'Data Input'!$A$3:$AX$41,4,FALSE) -> 25 | E12: =+VLOOKUP(+$A12,'Data Input'!$A$3:$AX$41,5,FALSE) -> -10 | F12: =+VLOOKUP(+$A12,'Data Input'!$A$3:$AX$41,6,FALSE) -> 0 | G12: =+VLOOKUP(+$A12,'Data Input'!$A$3:$AX$41,7,FALSE) -> B | H12: =+VLOOKUP($A12,'Data Input'!$A$3:$AX$41,33,FALSE) -> 4 | I12: =+VLOOKUP($A12,'Data Input'!$A$3:$AX$41,34,FALSE) -> 40 | J12: =+VLOOKUP($A12,'Data Input'!$A$3:$AX$41,35,FALSE) -> 4.8 | L12: =+VLOOKUP($A12,'Data Input'!$A$3:$AX$41,37,FALSE) -> 10
A13: 244 | B13: =+VLOOKUP(+$A13,'Data Input'!$A$3:$AX$41,2,FALSE) -> Catspaw | C13: =+VLOOKUP(+$A13,'Data Input'!$A$3:$AX$41,3,FALSE) -> B Wilkins | D13: =+VLOOKUP(+$A13,'Data Input'!$A$3:$AX$41,4,FALSE) -> 28 | E13: =+VLOOKUP(+$A13,'Data Input'!$A$3:$AX$41,5,FALSE) -> -4 | F13: =+VLOOKUP(+$A13,'Data Input'!$A$3:$AX$41,6,FALSE) -> 0 | G13: =+VLOOKUP(+$A13,'Data Input'!$A$3:$AX$41,7,FALSE) -> B | H13: =+VLOOKUP($A13,'Data Input'!$A$3:$AX$41,33,FALSE) -> 4 | I13: =+VLOOKUP($A13,'Data Input'!$A$3:$AX$41,34,FALSE) -> 40 | J13: =+VLOOKUP($A13,'Data Input'!$A$3:$AX$41,35,FALSE) -> 24 | L13: =+VLOOKUP($A13,'Data Input'!$A$3:$AX$41,37,FALSE) -> 11
A14: 218 | B14: =+VLOOKUP(+$A14,'Data Input'!$A$3:$AX$41,2,FALSE) -> Mystery | C14: =+VLOOKUP(+$A14,'Data Input'!$A$3:$AX$41,3,FALSE) -> M Ford | D14: =+VLOOKUP(+$A14,'Data Input'!$A$3:$AX$41,4,FALSE) -> 26 | E14: =+VLOOKUP(+$A14,'Data Input'!$A$3:$AX$41,5,FALSE) -> -9 | F14: =+VLOOKUP(+$A14,'Data Input'!$A$3:$AX$41,6,FALSE) -> 0 | G14: =+VLOOKUP(+$A14,'Data Input'!$A$3:$AX$41,7,FALSE) -> B | H14: =+VLOOKUP($A14,'Data Input'!$A$3:$AX$41,33,FALSE) -> 4 | I14: =+VLOOKUP($A14,'Data Input'!$A$3:$AX$41,34,FALSE) -> 41 | J14: =+VLOOKUP($A14,'Data Input'!$A$3:$AX$41,35,FALSE) -> 5.94 | L14: =+VLOOKUP($A14,'Data Input'!$A$3:$AX$41,37,FALSE) -> 12
A15: 400 | B15: =+VLOOKUP(+$A15,'Data Input'!$A$3:$AX$41,2,FALSE) -> Swallow | C15: =+VLOOKUP(+$A15,'Data Input'!$A$3:$AX$41,3,FALSE) -> K Halifax | D15: =+VLOOKUP(+$A15,'Data Input'!$A$3:$AX$41,4,FALSE) -> 26.5 | E15: =+VLOOKUP(+$A15,'Data Input'!$A$3:$AX$41,5,FALSE) -> -7 | F15: =+VLOOKUP(+$A15,'Data Input'!$A$3:$AX$41,6,FALSE) ->  | G15: =+VLOOKUP(+$A15,'Data Input'!$A$3:$AX$41,7,FALSE) -> B | H15: =+VLOOKUP($A15,'Data Input'!$A$3:$AX$41,33,FALSE) -> 4 | I15: =+VLOOKUP($A15,'Data Input'!$A$3:$AX$41,34,FALSE) -> 42 | J15: =+VLOOKUP($A15,'Data Input'!$A$3:$AX$41,35,FALSE) -> 31.11 | L15: =+VLOOKUP($A15,'Data Input'!$A$3:$AX$41,37,FALSE) -> 13
A16: 10 | B16: =+VLOOKUP(+$A16,'Data Input'!$A$3:$AX$41,2,FALSE) -> Flight | C16: =+VLOOKUP(+$A16,'Data Input'!$A$3:$AX$41,3,FALSE) -> J Farrow | D16: =+VLOOKUP(+$A16,'Data Input'!$A$3:$AX$41,4,FALSE) -> 29.9 | E16: =+VLOOKUP(+$A16,'Data Input'!$A$3:$AX$41,5,FALSE) -> -8 | F16: =+VLOOKUP(+$A16,'Data Input'!$A$3:$AX$41,6,FALSE) -> 0 | G16: =+VLOOKUP(+$A16,'Data Input'!$A$3:$AX$41,7,FALSE) -> A | H16: =+VLOOKUP($A16,'Data Input'!$A$3:$AX$41,33,FALSE) -> 4 | I16: =+VLOOKUP($A16,'Data Input'!$A$3:$AX$41,34,FALSE) -> 45 | J16: =+VLOOKUP($A16,'Data Input'!$A$3:$AX$41,35,FALSE) -> 28.56 | L16: =+VLOOKUP($A16,'Data Input'!$A$3:$AX$41,37,FALSE) -> 14
A17: 369 | B17: =+VLOOKUP(+$A17,'Data Input'!$A$3:$AX$41,2,FALSE) -> Moonshadow | C17: =+VLOOKUP(+$A17,'Data Input'!$A$3:$AX$41,3,FALSE) -> N Hovey | D17: =+VLOOKUP(+$A17,'Data Input'!$A$3:$AX$41,4,FALSE) -> 31.5 | E17: =+VLOOKUP(+$A17,'Data Input'!$A$3:$AX$41,5,FALSE) -> 4 | F17: =+VLOOKUP(+$A17,'Data Input'!$A$3:$AX$41,6,FALSE) ->  | G17: =+VLOOKUP(+$A17,'Data Input'!$A$3:$AX$41,7,FALSE) -> A | H17: =+VLOOKUP($A17,'Data Input'!$A$3:$AX$41,33,FALSE) -> 4 | I17: =+VLOOKUP($A17,'Data Input'!$A$3:$AX$41,34,FALSE) -> 45 | J17: =+VLOOKUP($A17,'Data Input'!$A$3:$AX$41,35,FALSE) -> 34 | L17: =+VLOOKUP($A17,'Data Input'!$A$3:$AX$41,37,FALSE) -> 15
A18: 417 | B18: =+VLOOKUP(+$A18,'Data Input'!$A$3:$AX$41,2,FALSE) -> Stellar | C18: =+VLOOKUP(+$A18,'Data Input'!$A$3:$AX$41,3,FALSE) -> T Frary | D18: =+VLOOKUP(+$A18,'Data Input'!$A$3:$AX$41,4,FALSE) -> 31.3 | E18: =+VLOOKUP(+$A18,'Data Input'!$A$3:$AX$41,5,FALSE) -> 17 | F18: =+VLOOKUP(+$A18,'Data Input'!$A$3:$AX$41,6,FALSE) -> 0 | G18: =+VLOOKUP(+$A18,'Data Input'!$A$3:$AX$41,7,FALSE) -> A | H18: =+VLOOKUP($A18,'Data Input'!$A$3:$AX$41,33,FALSE) -> 4 | I18: =+VLOOKUP($A18,'Data Input'!$A$3:$AX$41,34,FALSE) -> 51 | J18: =+VLOOKUP($A18,'Data Input'!$A$3:$AX$41,35,FALSE) -> 38.52 | L18: =+VLOOKUP($A18,'Data Input'!$A$3:$AX$41,37,FALSE) -> 16
A19: 429 | B19: =+VLOOKUP(+$A19,'Data Input'!$A$3:$AX$41,2,FALSE) -> Pickle | C19: =+VLOOKUP(+$A19,'Data Input'!$A$3:$AX$41,3,FALSE) -> P Montague | D19: =+VLOOKUP(+$A19,'Data Input'!$A$3:$AX$41,4,FALSE) -> 22.6 | E19: =+VLOOKUP(+$A19,'Data Input'!$A$3:$AX$41,5,FALSE) -> -17 | F19: =+VLOOKUP(+$A19,'Data Input'!$A$3:$AX$41,6,FALSE) -> 0 | G19: =+VLOOKUP(+$A19,'Data Input'!$A$3:$AX$41,7,FALSE) -> C | H19: =+VLOOKUP($A19,'Data Input'!$A$3:$AX$41,33,FALSE) -> 4 | I19: =+VLOOKUP($A19,'Data Input'!$A$3:$AX$41,34,FALSE) -> 52 | J19: =+VLOOKUP($A19,'Data Input'!$A$3:$AX$41,35,FALSE) -> 4.62 | L19: =+VLOOKUP($A19,'Data Input'!$A$3:$AX$41,37,FALSE) -> 17
A20: 25 | B20: =+VLOOKUP(+$A20,'Data Input'!$A$3:$AX$41,2,FALSE) -> Melody | C20: =+VLOOKUP(+$A20,'Data Input'!$A$3:$AX$41,3,FALSE) -> M Wells | D20: =+VLOOKUP(+$A20,'Data Input'!$A$3:$AX$41,4,FALSE) -> 26 | E20: =+VLOOKUP(+$A20,'Data Input'!$A$3:$AX$41,5,FALSE) -> -10 | F20: =+VLOOKUP(+$A20,'Data Input'!$A$3:$AX$41,6,FALSE) -> 0 | G20: =+VLOOKUP(+$A20,'Data Input'!$A$3:$AX$41,7,FALSE) -> B | H20: =+VLOOKUP($A20,'Data Input'!$A$3:$AX$41,33,FALSE) -> 4 | I20: =+VLOOKUP($A20,'Data Input'!$A$3:$AX$41,34,FALSE) -> 56 | J20: =+VLOOKUP($A20,'Data Input'!$A$3:$AX$41,35,FALSE) -> 57.3 | L20: =+VLOOKUP($A20,'Data Input'!$A$3:$AX$41,37,FALSE) -> 18
A21: 217 | B21: =+VLOOKUP(+$A21,'Data Input'!$A$3:$AX$41,2,FALSE) -> Melinda | C21: =+VLOOKUP(+$A21,'Data Input'!$A$3:$AX$41,3,FALSE) -> P Howes | D21: =+VLOOKUP(+$A21,'Data Input'!$A$3:$AX$41,4,FALSE) -> 27.9 | E21: =+VLOOKUP(+$A21,'Data Input'!$A$3:$AX$41,5,FALSE) -> 1 | F21: =+VLOOKUP(+$A21,'Data Input'!$A$3:$AX$41,6,FALSE) -> 0 | G21: =+VLOOKUP(+$A21,'Data Input'!$A$3:$AX$41,7,FALSE) -> B | H21: =+VLOOKUP($A21,'Data Input'!$A$3:$AX$41,33,FALSE) -> 5 | I21: =+VLOOKUP($A21,'Data Input'!$A$3:$AX$41,34,FALSE) -> 1 | J21: =+VLOOKUP($A21,'Data Input'!$A$3:$AX$41,35,FALSE) -> 38.19 | L21: =+VLOOKUP($A21,'Data Input'!$A$3:$AX$41,37,FALSE) -> 19
A22: 373 | B22: =+VLOOKUP(+$A22,'Data Input'!$A$3:$AX$41,2,FALSE) -> Meggie | C22: =+VLOOKUP(+$A22,'Data Input'!$A$3:$AX$41,3,FALSE) -> J Tansley | D22: =+VLOOKUP(+$A22,'Data Input'!$A$3:$AX$41,4,FALSE) -> 34.9 | E22: =+VLOOKUP(+$A22,'Data Input'!$A$3:$AX$41,5,FALSE) -> 13 | F22: =+VLOOKUP(+$A22,'Data Input'!$A$3:$AX$41,6,FALSE) ->  | G22: =+VLOOKUP(+$A22,'Data Input'!$A$3:$AX$41,7,FALSE) -> A | H22: =+VLOOKUP($A22,'Data Input'!$A$3:$AX$41,33,FALSE) -> 5 | I22: =+VLOOKUP($A22,'Data Input'!$A$3:$AX$41,34,FALSE) -> 4 | J22: =+VLOOKUP($A22,'Data Input'!$A$3:$AX$41,35,FALSE) -> 21.93 | L22: =+VLOOKUP($A22,'Data Input'!$A$3:$AX$41,37,FALSE) -> 20
A23: 79 | B23: =+VLOOKUP(+$A23,'Data Input'!$A$3:$AX$41,2,FALSE) -> Daisy | C23: =+VLOOKUP(+$A23,'Data Input'!$A$3:$AX$41,3,FALSE) -> T Ford | D23: =+VLOOKUP(+$A23,'Data Input'!$A$3:$AX$41,4,FALSE) -> 22 | E23: =+VLOOKUP(+$A23,'Data Input'!$A$3:$AX$41,5,FALSE) -> -21 | F23: =+VLOOKUP(+$A23,'Data Input'!$A$3:$AX$41,6,FALSE) -> 0 | G23: =+VLOOKUP(+$A23,'Data Input'!$A$3:$AX$41,7,FALSE) -> C | H23: =+VLOOKUP($A23,'Data Input'!$A$3:$AX$41,33,FALSE) -> 5 | I23: =+VLOOKUP($A23,'Data Input'!$A$3:$AX$41,34,FALSE) -> 31 | J23: =+VLOOKUP($A23,'Data Input'!$A$3:$AX$41,35,FALSE) -> 29.04 | L23: =+VLOOKUP($A23,'Data Input'!$A$3:$AX$41,37,FALSE) -> 21
A24: 22 | B24: =+VLOOKUP(+$A24,'Data Input'!$A$3:$AX$41,2,FALSE) -> Moonraker | C24: =+VLOOKUP(+$A24,'Data Input'!$A$3:$AX$41,3,FALSE) -> P Jeckells | D24: =+VLOOKUP(+$A24,'Data Input'!$A$3:$AX$41,4,FALSE) -> 29.5 | E24: =+VLOOKUP(+$A24,'Data Input'!$A$3:$AX$41,5,FALSE) -> 2 | F24: =+VLOOKUP(+$A24,'Data Input'!$A$3:$AX$41,6,FALSE) -> DNS | G24: =+VLOOKUP(+$A24,'Data Input'!$A$3:$AX$41,7,FALSE) -> A | H24: =+VLOOKUP($A24,'Data Input'!$A$3:$AX$41,33,FALSE) -> 0 | I24: =+VLOOKUP($A24,'Data Input'!$A$3:$AX$41,34,FALSE) -> 0 | J24: =+VLOOKUP($A24,'Data Input'!$A$3:$AX$41,35,FALSE) -> 0 | L24: =+VLOOKUP($A24,'Data Input'!$A$3:$AX$41,37,FALSE) -> DNS
A25: 52 | B25: =+VLOOKUP(+$A25,'Data Input'!$A$3:$AX$41,2,FALSE) -> Maidie | C25: =+VLOOKUP(+$A25,'Data Input'!$A$3:$AX$41,3,FALSE) -> M Barnes | D25: =+VLOOKUP(+$A25,'Data Input'!$A$3:$AX$41,4,FALSE) -> 43.2 | E25: =+VLOOKUP(+$A25,'Data Input'!$A$3:$AX$41,5,FALSE) -> 13 | F25: =+VLOOKUP(+$A25,'Data Input'!$A$3:$AX$41,6,FALSE) -> DNS | G25: =+VLOOKUP(+$A25,'Data Input'!$A$3:$AX$41,7,FALSE) -> A | H25: =+VLOOKUP($A25,'Data Input'!$A$3:$AX$41,33,FALSE) -> 0 | I25: =+VLOOKUP($A25,'Data Input'!$A$3:$AX$41,34,FALSE) -> 0 | J25: =+VLOOKUP($A25,'Data Input'!$A$3:$AX$41,35,FALSE) -> 0 | L25: =+VLOOKUP($A25,'Data Input'!$A$3:$AX$41,37,FALSE) -> DNS
A26: 274 | B26: =+VLOOKUP(+$A26,'Data Input'!$A$3:$AX$41,2,FALSE) -> Elfin | C26: =+VLOOKUP(+$A26,'Data Input'!$A$3:$AX$41,3,FALSE) -> A Bond | D26: =+VLOOKUP(+$A26,'Data Input'!$A$3:$AX$41,4,FALSE) -> 21 | E26: =+VLOOKUP(+$A26,'Data Input'!$A$3:$AX$41,5,FALSE) -> -27 | F26: =+VLOOKUP(+$A26,'Data Input'!$A$3:$AX$41,6,FALSE) -> DNS | G26: =+VLOOKUP(+$A26,'Data Input'!$A$3:$AX$41,7,FALSE) -> C | H26: =+VLOOKUP($A26,'Data Input'!$A$3:$AX$41,33,FALSE) -> 0 | I26: =+VLOOKUP($A26,'Data Input'!$A$3:$AX$41,34,FALSE) -> 0 | J26: =+VLOOKUP($A26,'Data Input'!$A$3:$AX$41,35,FALSE) -> 0 | L26: =+VLOOKUP($A26,'Data Input'!$A$3:$AX$41,37,FALSE) -> DNS
A27: 335 | B27: =+VLOOKUP(+$A27,'Data Input'!$A$3:$AX$41,2,FALSE) -> Firebird | C27: =+VLOOKUP(+$A27,'Data Input'!$A$3:$AX$41,3,FALSE) -> R Richardson | D27: =+VLOOKUP(+$A27,'Data Input'!$A$3:$AX$41,4,FALSE) -> 30 | E27: =+VLOOKUP(+$A27,'Data Input'!$A$3:$AX$41,5,FALSE) -> 1 | F27: =+VLOOKUP(+$A27,'Data Input'!$A$3:$AX$41,6,FALSE) -> DNS | G27: =+VLOOKUP(+$A27,'Data Input'!$A$3:$AX$41,7,FALSE) -> A | H27: =+VLOOKUP($A27,'Data Input'!$A$3:$AX$41,33,FALSE) -> 0 | I27: =+VLOOKUP($A27,'Data Input'!$A$3:$AX$41,34,FALSE) -> 0 | J27: =+VLOOKUP($A27,'Data Input'!$A$3:$AX$41,35,FALSE) -> 0 | L27: =+VLOOKUP($A27,'Data Input'!$A$3:$AX$41,37,FALSE) -> DNS
A28: 141 | B28: =+VLOOKUP(+$A28,'Data Input'!$A$3:$AX$41,2,FALSE) -> Nirvana | C28: =+VLOOKUP(+$A28,'Data Input'!$A$3:$AX$41,3,FALSE) -> M Claridge | D28: =+VLOOKUP(+$A28,'Data Input'!$A$3:$AX$41,4,FALSE) -> 20 | E28: =+VLOOKUP(+$A28,'Data Input'!$A$3:$AX$41,5,FALSE) -> -23 | F28: =+VLOOKUP(+$A28,'Data Input'!$A$3:$AX$41,6,FALSE) -> P | G28: =+VLOOKUP(+$A28,'Data Input'!$A$3:$AX$41,7,FALSE) -> C | H28: =+VLOOKUP($A28,'Data Input'!$A$3:$AX$41,33,FALSE) -> 4 | I28: =+VLOOKUP($A28,'Data Input'!$A$3:$AX$41,34,FALSE) -> 47 | J28: =+VLOOKUP($A28,'Data Input'!$A$3:$AX$41,35,FALSE) -> 8.75 | L28: =+VLOOKUP($A28,'Data Input'!$A$3:$AX$41,37,FALSE) -> P
A29: 6 | B29: =+VLOOKUP(+$A29,'Data Input'!$A$3:$AX$43,2,FALSE) -> Dragonfly | C29: =+VLOOKUP(+$A29,'Data Input'!$A$3:$AX$41,3,FALSE) -> S Simpson | D29: =+VLOOKUP(+$A29,'Data Input'!$A$3:$AX$41,4,FALSE) -> 38 | E29: =+VLOOKUP(+$A29,'Data Input'!$A$3:$AX$41,5,FALSE) -> -13 | F29: =+VLOOKUP(+$A29,'Data Input'!$A$3:$AX$41,6,FALSE) -> W | G29: =+VLOOKUP(+$A29,'Data Input'!$A$3:$AX$41,7,FALSE) -> A | H29: =+VLOOKUP($A29,'Data Input'!$A$3:$AX$41,33,FALSE) -> 8 | I29: =+VLOOKUP($A29,'Data Input'!$A$3:$AX$41,34,FALSE) -> 54 | J29: =+VLOOKUP($A29,'Data Input'!$A$3:$AX$41,35,FALSE) -> 40.38 | L29: =+VLOOKUP($A29,'Data Input'!$A$3:$AX$41,37,FALSE) -> W
A30: 155 | B30: =+VLOOKUP(+$A30,'Data Input'!$A$3:$AX$41,2,FALSE) -> Stratus | C30: =+VLOOKUP(+$A30,'Data Input'!$A$3:$AX$41,3,FALSE) -> J Townley | D30: =+VLOOKUP(+$A30,'Data Input'!$A$3:$AX$41,4,FALSE) -> 22.6 | E30: =+VLOOKUP(+$A30,'Data Input'!$A$3:$AX$41,5,FALSE) -> -17 | F30: =+VLOOKUP(+$A30,'Data Input'!$A$3:$AX$41,6,FALSE) -> W | G30: =+VLOOKUP(+$A30,'Data Input'!$A$3:$AX$41,7,FALSE) -> C | H30: =+VLOOKUP($A30,'Data Input'!$A$3:$AX$41,33,FALSE) -> 7 | I30: =+VLOOKUP($A30,'Data Input'!$A$3:$AX$41,34,FALSE) -> 32 | J30: =+VLOOKUP($A30,'Data Input'!$A$3:$AX$41,35,FALSE) -> 52.54 | L30: =+VLOOKUP($A30,'Data Input'!$A$3:$AX$41,37,FALSE) -> W
A31: 177 | B31: =+VLOOKUP(+$A31,'Data Input'!$A$3:$AX$41,2,FALSE) -> Breeze | C31: =+VLOOKUP(+$A31,'Data Input'!$A$3:$AX$41,3,FALSE) -> M Ellis | D31: =+VLOOKUP(+$A31,'Data Input'!$A$3:$AX$41,4,FALSE) -> 32 | E31: =+VLOOKUP(+$A31,'Data Input'!$A$3:$AX$41,5,FALSE) -> 3 | F31: =+VLOOKUP(+$A31,'Data Input'!$A$3:$AX$41,6,FALSE) -> W | G31: =+VLOOKUP(+$A31,'Data Input'!$A$3:$AX$41,7,FALSE) -> A | H31: =+VLOOKUP($A31,'Data Input'!$A$3:$AX$41,33,FALSE) -> 9 | I31: =+VLOOKUP($A31,'Data Input'!$A$3:$AX$41,34,FALSE) -> 32 | J31: =+VLOOKUP($A31,'Data Input'!$A$3:$AX$41,35,FALSE) -> 18.14 | L31: =+VLOOKUP($A31,'Data Input'!$A$3:$AX$41,37,FALSE) -> W
A32: 219 | B32: =+VLOOKUP(+$A32,'Data Input'!$A$3:$AX$41,2,FALSE) -> Farthing | C32: =+VLOOKUP(+$A32,'Data Input'!$A$3:$AX$41,3,FALSE) -> M Farrar | D32: =+VLOOKUP(+$A32,'Data Input'!$A$3:$AX$41,4,FALSE) -> 36 | E32: =+VLOOKUP(+$A32,'Data Input'!$A$3:$AX$41,5,FALSE) -> 3 | F32: =+VLOOKUP(+$A32,'Data Input'!$A$3:$AX$41,6,FALSE) -> W | G32: =+VLOOKUP(+$A32,'Data Input'!$A$3:$AX$41,7,FALSE) -> A | H32: =+VLOOKUP($A32,'Data Input'!$A$3:$AX$41,33,FALSE) -> 9 | I32: =+VLOOKUP($A32,'Data Input'!$A$3:$AX$41,34,FALSE) -> 59 | J32: =+VLOOKUP($A32,'Data Input'!$A$3:$AX$41,35,FALSE) -> 43.05 | L32: =+VLOOKUP($A32,'Data Input'!$A$3:$AX$41,37,FALSE) -> W
A33: 240 | B33: =+VLOOKUP(+$A33,'Data Input'!$A$3:$AX$41,2,FALSE) -> Avocet | C33: =+VLOOKUP(+$A33,'Data Input'!$A$3:$AX$41,3,FALSE) -> R Branford | D33: =+VLOOKUP(+$A33,'Data Input'!$A$3:$AX$41,4,FALSE) -> 28 | E33: =+VLOOKUP(+$A33,'Data Input'!$A$3:$AX$41,5,FALSE) -> -16 | F33: =+VLOOKUP(+$A33,'Data Input'!$A$3:$AX$41,6,FALSE) -> W | G33: =+VLOOKUP(+$A33,'Data Input'!$A$3:$AX$41,7,FALSE) -> B | H33: =+VLOOKUP($A33,'Data Input'!$A$3:$AX$41,33,FALSE) -> 8 | I33: =+VLOOKUP($A33,'Data Input'!$A$3:$AX$41,34,FALSE) -> 2 | J33: =+VLOOKUP($A33,'Data Input'!$A$3:$AX$41,35,FALSE) -> 4.56 | L33: =+VLOOKUP($A33,'Data Input'!$A$3:$AX$41,37,FALSE) -> W
A34: 416 | B34: =+VLOOKUP(+$A34,'Data Input'!$A$3:$AX$41,2,FALSE) -> Alice Rose | C34: =+VLOOKUP(+$A34,'Data Input'!$A$3:$AX$41,3,FALSE) -> D Radley | D34: =+VLOOKUP(+$A34,'Data Input'!$A$3:$AX$41,4,FALSE) -> 28.5 | E34: =+VLOOKUP(+$A34,'Data Input'!$A$3:$AX$41,5,FALSE) -> -7 | F34: =+VLOOKUP(+$A34,'Data Input'!$A$3:$AX$41,6,FALSE) -> W | G34: =+VLOOKUP(+$A34,'Data Input'!$A$3:$AX$41,7,FALSE) -> A | H34: =+VLOOKUP($A34,'Data Input'!$A$3:$AX$41,33,FALSE) -> 8 | I34: =+VLOOKUP($A34,'Data Input'!$A$3:$AX$41,34,FALSE) -> 35 | J34: =+VLOOKUP($A34,'Data Input'!$A$3:$AX$41,35,FALSE) -> 5.76 | L34: =+VLOOKUP($A34,'Data Input'!$A$3:$AX$41,37,FALSE) -> W
A35: 109 | B35: =+VLOOKUP(+$A35,'Data Input'!$A$3:$AX$41,2,FALSE) -> Kingfisher | C35: =+VLOOKUP(+$A35,'Data Input'!$A$3:$AX$41,3,FALSE) -> J Flatman | D35: =+VLOOKUP(+$A35,'Data Input'!$A$3:$AX$41,4,FALSE) -> 24.5 | E35: =+VLOOKUP(+$A35,'Data Input'!$A$3:$AX$41,5,FALSE) -> -19 | F35: =+VLOOKUP(+$A35,'Data Input'!$A$3:$AX$41,6,FALSE) -> W | G35: =+VLOOKUP(+$A35,'Data Input'!$A$3:$AX$41,7,FALSE) -> C | H35: =+VLOOKUP($A35,'Data Input'!$A$3:$AX$41,33,FALSE) -> 7 | I35: =+VLOOKUP($A35,'Data Input'!$A$3:$AX$41,34,FALSE) -> 25 | J35: =+VLOOKUP($A35,'Data Input'!$A$3:$AX$41,35,FALSE) -> 30 | L35: =+VLOOKUP($A35,'Data Input'!$A$3:$AX$41,37,FALSE) -> W
A42: =COUNT(A3:A41) -> 33

Sheet Moonraker
I1: Elapsed
A2: No | B2: Yacht | C2: Skipper | D2: Length | E2: H/C | F2: P | G2: Class | H2: H | I2: M | J2: S | L2: Pos
A3: 323 | B3: =+VLOOKUP(+$A3,'Data Input'!$A$3:$AX$41,2,FALSE) -> Starlight Lady | C3: =+VLOOKUP(+$A3,'Data Input'!$A$3:$AX$41,3,FALSE) -> N.Matthews | D3: =+VLOOKUP(+$A3,'Data Input'!$A$3:$AX$41,4,FALSE) -> 30 | E3: =+VLOOKUP(+$A3,'Data Input'!$A$3:$AX$41,5,FALSE) -> 13 | F3: =+VLOOKUP(+$A3,'Data Input'!$A$3:$AX$41,6,FALSE) -> 0 | G3: =+VLOOKUP(+$A3,'Data Input'!$A$3:$AX$41,7,FALSE) -> A | H3: =+VLOOKUP($A3,'Data Input'!$A$3:$AX$41,27,FALSE) -> 4 | I3: =+VLOOKUP($A3,'Data Input'!$A$3:$AX$41,28,FALSE) -> 5 | J3: =+VLOOKUP($A3,'Data Input'!$A$3:$AX$41,29,FALSE) -> 1 | L3: =+VLOOKUP($A3,'Data Input'!$A$3:$AX$41,31,FALSE) -> 1
A4: 417 | B4: =+VLOOKUP(+$A4,'Data Input'!$A$3:$AX$41,2,FALSE) -> Stellar | C4: =+VLOOKUP(+$A4,'Data Input'!$A$3:$AX$41,3,FALSE) -> T Frary | D4: =+VLOOKUP(+$A4,'Data Input'!$A$3:$AX$41,4,FALSE) -> 31.3 | E4: =+VLOOKUP(+$A4,'Data Input'!$A$3:$AX$41,5,FALSE) -> 17 | F4: =+VLOOKUP(+$A4,'Data Input'!$A$3:$AX$41,6,FALSE) -> 0 | G4: =+VLOOKUP(+$A4,'Data Input'!$A$3:$AX$41,7,FALSE) -> A | H4: =+VLOOKUP($A4,'Data Input'!$A$3:$AX$41,27,FALSE) -> 4 | I4: =+VLOOKUP($A4,'Data Input'!$A$3:$AX$41,28,FALSE) -> 9 | J4: =+VLOOKUP($A4,'Data Input'!$A$3:$AX$41,29,FALSE) -> 16 | L4: =+VLOOKUP($A4,'Data Input'!$A$3:$AX$41,31,FALSE) -> 2
A5: 373 | B5: =+VLOOKUP(+$A5,'Data Input'!$A$3:$AX$41,2,FALSE) -> Meggie | C5: =+VLOOKUP(+$A5,'Data Input'!$A$3:$AX$41,3,FALSE) -> J Tansley | D5: =+VLOOKUP(+$A5,'Data Input'!$A$3:$AX$41,4,FALSE) -> 34.9 | E5: =+VLOOKUP(+$A5,'Data Input'!$A$3:$AX$41,5,FALSE) -> 13 | F5: =+VLOOKUP(+$A5,'Data Input'!$A$3:$AX$41,6,FALSE) ->  | G5: =+VLOOKUP(+$A5,'Data Input'!$A$3:$AX$41,7,FALSE) -> A | H5: =+VLOOKUP($A5,'Data Input'!$A$3:$AX$41,27,FALSE) -> 4 | I5: =+VLOOKUP($A5,'Data Input'!$A$3:$AX$41,28,FALSE) -> 29 | J5: =+VLOOKUP($A5,'Data Input'!$A$3:$AX$41,29,FALSE) -> 21 | L5: =+VLOOKUP($A5,'Data Input'!$A$3:$AX$41,31,FALSE) -> 3
A6: 368 | B6: =+VLOOKUP(+$A6,'Data Input'!$A$3:$AX$41,2,FALSE) -> Wandering Rose | C6: =+VLOOKUP(+$A6,'Data Input'!$A$3:$AX$41,3,FALSE) -> Radley | D6: =+VLOOKUP(+$A6,'Data Input'!$A$3:$AX$41,4,FALSE) -> 31 | E6: =+VLOOKUP(+$A6,'Data Input'!$A$3:$AX$41,5,FALSE) -> -2 | F6: =+VLOOKUP(+$A6,'Data Input'!$A$3:$AX$41,6,FALSE) -> 0 | G6: =+VLOOKUP(+$A6,'Data Input'!$A$3:$AX$41,7,FALSE) -> A | H6: =+VLOOKUP($A6,'Data Input'!$A$3:$AX$41,27,FALSE) -> 4 | I6: =+VLOOKUP($A6,'Data Input'!$A$3:$AX$41,28,FALSE) -> 32 | J6: =+VLOOKUP($A6,'Data Input'!$A$3:$AX$41,29,FALSE) -> 53 | L6: =+VLOOKUP($A6,'Data Input'!$A$3:$AX$41,31,FALSE) -> 4
A7: 369 | B7: =+VLOOKUP(+$A7,'Data Input'!$A$3:$AX$41,2,FALSE) -> Moonshadow | C7: =+VLOOKUP(+$A7,'Data Input'!$A$3:$AX$41,3,FALSE) -> N Hovey | D7: =+VLOOKUP(+$A7,'Data Input'!$A$3:$AX$41,4,FALSE) -> 31.5 | E7: =+VLOOKUP(+$A7,'Data Input'!$A$3:$AX$41,5,FALSE) -> 4 | F7: =+VLOOKUP(+$A7,'Data Input'!$A$3:$AX$41,6,FALSE) ->  | G7: =+VLOOKUP(+$A7,'Data Input'!$A$3:$AX$41,7,FALSE) -> A | H7: =+VLOOKUP($A7,'Data Input'!$A$3:$AX$41,27,FALSE) -> 4 | I7: =+VLOOKUP($A7,'Data Input'!$A$3:$AX$41,28,FALSE) -> 34 | J7: =+VLOOKUP($A7,'Data Input'!$A$3:$AX$41,29,FALSE) -> 35 | L7: =+VLOOKUP($A7,'Data Input'!$A$3:$AX$41,31,FALSE) -> 5
A8: 370 | B8: =+VLOOKUP(+$A8,'Data Input'!$A$3:$AX$41,2,FALSE) -> Glory | C8: =+VLOOKUP(+$A8,'Data Input'!$A$3:$AX$41,3,FALSE) -> C Brown | D8: =+VLOOKUP(+$A8,'Data Input'!$A$3:$AX$41,4,FALSE) -> 35 | E8: =+VLOOKUP(+$A8,'Data Input'!$A$3:$AX$41,5,FALSE) -> -6 | F8: =+VLOOKUP(+$A8,'Data Input'!$A$3:$AX$41,6,FALSE) ->  | G8: =+VLOOKUP(+$A8,'Data Input'!$A$3:$AX$41,7,FALSE) -> A | H8: =+VLOOKUP($A8,'Data Input'!$A$3:$AX$41,27,FALSE) -> 4 | I8: =+VLOOKUP($A8,'Data Input'!$A$3:$AX$41,28,FALSE) -> 37 | J8: =+VLOOKUP($A8,'Data Input'!$A$3:$AX$41,29,FALSE) -> 45 | L8: =+VLOOKUP($A8,'Data Input'!$A$3:$AX$41,31,FALSE) -> 6
A9: 262 | B9: =+VLOOKUP(+$A9,'Data Input'!$A$3:$AX$41,2,FALSE) -> Jessie May | C9: =+VLOOKUP(+$A9,'Data Input'!$A$3:$AX$41,3,FALSE) -> S Dugdale | D9: =+VLOOKUP(+$A9,'Data Input'!$A$3:$AX$41,4,FALSE) -> 28 | E9: =+VLOOKUP(+$A9,'Data Input'!$A$3:$AX$41,5,FALSE) -> -5 | F9: =+VLOOKUP(+$A9,'Data Input'!$A$3:$AX$41,6,FALSE) -> 0 | G9: =+VLOOKUP(+$A9,'Data Input'!$A$3:$AX$41,7,FALSE) -> B | H9: =+VLOOKUP($A9,'Data Input'!$A$3:$AX$41,27,FALSE) -> 4 | I9: =+VLOOKUP($A9,'Data Input'!$A$3:$AX$41,28,FALSE) -> 39 | J9: =+VLOOKUP($A9,'Data Input'!$A$3:$AX$41,29,FALSE) -> 44 | L9: =+VLOOKUP($A9,'Data Input'!$A$3:$AX$41,31,FALSE) -> 7
A10: 244 | B10: =+VLOOKUP(+$A10,'Data Input'!$A$3:$AX$41,2,FALSE) -> Catspaw | C10: =+VLOOKUP(+$A10,'Data Input'!$A$3:$AX$41,3,FALSE) -> B Wilkins | D10: =+VLOOKUP(+$A10,'Data Input'!$A$3:$AX$41,4,FALSE) -> 28 | E10: =+VLOOKUP(+$A10,'Data Input'!$A$3:$AX$41,5,FALSE) -> -4 | F10: =+VLOOKUP(+$A10,'Data Input'!$A$3:$AX$41,6,FALSE) -> 0 | G10: =+VLOOKUP(+$A10,'Data Input'!$A$3:$AX$41,7,FALSE) -> B | H10: =+VLOOKUP($A10,'Data Input'!$A$3:$AX$41,27,FALSE) -> 4 | I10: =+VLOOKUP($A10,'Data Input'!$A$3:$AX$41,28,FALSE) -> 52 | J10: =+VLOOKUP($A10,'Data Input'!$A$3:$AX$41,29,FALSE) -> 5 | L10: =+VLOOKUP($A10,'Data Input'!$A$3:$AX$41,31,FALSE) -> 8
A11: 152 | B11: =+VLOOKUP(+$A11,'Data Input'!$A$3:$AX$41,2,FALSE) -> Sabrina 2 | C11: =+VLOOKUP(+$A11,'Data Input'!$A$3:$AX$41,3,FALSE) -> J Holmes | D11: =+VLOOKUP(+$A11,'Data Input'!$A$3:$AX$41,4,FALSE) -> 29 | E11: =+VLOOKUP(+$A11,'Data Input'!$A$3:$AX$41,5,FALSE) -> -7 | F11: =+VLOOKUP(+$A11,'Data Input'!$A$3:$AX$41,6,FALSE) -> 0 | G11: =+VLOOKUP(+$A11,'Data Input'!$A$3:$AX$41,7,FALSE) -> A | H11: =+VLOOKUP($A11,'Data Input'!$A$3:$AX$41,27,FALSE) -> 4 | I11: =+VLOOKUP($A11,'Data Input'!$A$3:$AX$41,28,FALSE) -> 57 | J11: =+VLOOKUP($A11,'Data Input'!$A$3:$AX$41,29,FALSE) -> 47 | L11: =+VLOOKUP($A11,'Data Input'!$A$3:$AX$41,31,FALSE) -> 9
A12: 179 | B12: =+VLOOKUP(+$A12,'Data Input'!$A$3:$AX$41,2,FALSE) -> Waxwing | C12: =+VLOOKUP(+$A12,'Data Input'!$A$3:$AX$41,3,FALSE) -> S Clayton | D12: =+VLOOKUP(+$A12,'Data Input'!$A$3:$AX$41,4,FALSE) -> 28 | E12: =+VLOOKUP(+$A12,'Data Input'!$A$3:$AX$41,5,FALSE) -> -8 | F12: =+VLOOKUP(+$A12,'Data Input'!$A$3:$AX$41,6,FALSE) -> 0 | G12: =+VLOOKUP(+$A12,'Data Input'!$A$3:$AX$41,7,FALSE) -> B | H12: =+VLOOKUP($A12,'Data Input'!$A$3:$AX$41,27,FALSE) -> 4 | I12: =+VLOOKUP($A12,'Data Input'!$A$3:$AX$41,28,FALSE) -> 58 | J12: =+VLOOKUP($A12,'Data Input'!$A$3:$AX$41,29,FALSE) -> 9 | L12: =+VLOOKUP($A12,'Data Input'!$A$3:$AX$41,31,FALSE) -> 10
A13: 217 | B13: =+VLOOKUP(+$A13,'Data Input'!$A$3:$AX$41,2,FALSE) -> Melinda | C13: =+VLOOKUP(+$A13,'Data Input'!$A$3:$AX$41,3,FALSE) -> P Howes | D13: =+VLOOKUP(+$A13,'Data Input'!$A$3:$AX$41,4,FALSE) -> 27.9 | E13: =+VLOOKUP(+$A13,'Data Input'!$A$3:$AX$41,5,FALSE) -> 1 | F13: =+VLOOKUP(+$A13,'Data Input'!$A$3:$AX$41,6,FALSE) -> 0 | G13: =+VLOOKUP(+$A13,'Data Input'!$A$3:$AX$41,7,FALSE) -> B | H13: =+VLOOKUP($A13,'Data Input'!$A$3:$AX$41,27,FALSE) -> 4 | I13: =+VLOOKUP($A13,'Data Input'!$A$3:$AX$41,28,FALSE) -> 58 | J13: =+VLOOKUP($A13,'Data Input'!$A$3:$AX$41,29,FALSE) -> 39 | L13: =+VLOOKUP($A13,'Data Input'!$A$3:$AX$41,31,FALSE) -> 11
A14: 418 | B14: =+VLOOKUP(+$A14,'Data Input'!$A$3:$AX$41,2,FALSE) -> Tinkerbell | C14: =+VLOOKUP(+$A14,'Data Input'!$A$3:$AX$41,3,FALSE) -> A Lincoln | D14: =+VLOOKUP(+$A14,'Data Input'!$A$3:$AX$41,4,FALSE) -> 25.2 | E14: =+VLOOKUP(+$A14,'Data Input'!$A$3:$AX$41,5,FALSE) -> -7 | F14: =+VLOOKUP(+$A14,'Data Input'!$A$3:$AX$41,6,FALSE) ->  | G14: =+VLOOKUP(+$A14,'Data Input'!$A$3:$AX$41,7,FALSE) -> B | H14: =+VLOOKUP($A14,'Data Input'!$A$3:$AX$41,27,FALSE) -> 4 | I14: =+VLOOKUP($A14,'Data Input'!$A$3:$AX$41,28,FALSE) -> 59 | J14: =+VLOOKUP($A14,'Data Input'!$A$3:$AX$41,29,FALSE) -> 3 | L14: =+VLOOKUP($A14,'Data Input'!$A$3:$AX$41,31,FALSE) -> 12
A15: 400 | B15: =+VLOOKUP(+$A15,'Data Input'!$A$3:$AX$41,2,FALSE) -> Swallow | C15: =+VLOOKUP(+$A15,'Data Input'!$A$3:$AX$41,3,FALSE) -> K Halifax | D15: =+VLOOKUP(+$A15,'Data Input'!$A$3:$AX$41,4,FALSE) -> 26.5 | E15: =+VLOOKUP(+$A15,'Data Input'!$A$3:$AX$41,5,FALSE) -> -7 | F15: =+VLOOKUP(+$A15,'Data Input'!$A$3:$AX$41,6,FALSE) ->  | G15: =+VLOOKUP(+$A15,'Data Input'!$A$3:$AX$41,7,FALSE) -> B | H15: =+VLOOKUP($A15,'Data Input'!$A$3:$AX$41,27,FALSE) -> 5 | I15: =+VLOOKUP($A15,'Data Input'!$A$3:$AX$41,28,FALSE) -> 3 | J15: =+VLOOKUP($A15,'Data Input'!$A$3:$AX$41,29,FALSE) -> 47 | L15: =+VLOOKUP($A15,'Data Input'!$A$3:$AX$41,31,FALSE) -> 13
A16: 199 | B16: =+VLOOKUP(+$A16,'Data Input'!$A$3:$AX$41,2,FALSE) -> Morning Calm | C16: =+VLOOKUP(+$A16,'Data Input'!$A$3:$AX$41,3,FALSE) -> W Clark | D16: =+VLOOKUP(+$A16,'Data Input'!$A$3:$AX$41,4,FALSE) -> 26 | E16: =+VLOOKUP(+$A16,'Data Input'!$A$3:$AX$41,5,FALSE) -> -9 | F16: =+VLOOKUP(+$A16,'Data Input'!$A$3:$AX$41,6,FALSE) -> 0 | G16: =+VLOOKUP(+$A16,'Data Input'!$A$3:$AX$41,7,FALSE) -> B | H16: =+VLOOKUP($A16,'Data Input'!$A$3:$AX$41,27,FALSE) -> 5 | I16: =+VLOOKUP($A16,'Data Input'!$A$3:$AX$41,28,FALSE) -> 7 | J16: =+VLOOKUP($A16,'Data Input'!$A$3:$AX$41,29,FALSE) -> 5 | L16: =+VLOOKUP($A16,'Data Input'!$A$3:$AX$41,31,FALSE) -> 14
A17: 218 | B17: =+VLOOKUP(+$A17,'Data Input'!$A$3:$AX$41,2,FALSE) -> Mystery | C17: =+VLOOKUP(+$A17,'Data Input'!$A$3:$AX$41,3,FALSE) -> M Ford | D17: =+VLOOKUP(+$A17,'Data Input'!$A$3:$AX$41,4,FALSE) -> 26 | E17: =+VLOOKUP(+$A17,'Data Input'!$A$3:$AX$41,5,FALSE) -> -9 | F17: =+VLOOKUP(+$A17,'Data Input'!$A$3:$AX$41,6,FALSE) -> 0 | G17: =+VLOOKUP(+$A17,'Data Input'!$A$3:$AX$41,7,FALSE) -> B | H17: =+VLOOKUP($A17,'Data Input'!$A$3:$AX$41,27,FALSE) -> 5 | I17: =+VLOOKUP($A17,'Data Input'!$A$3:$AX$41,28,FALSE) -> 8 | J17: =+VLOOKUP($A17,'Data Input'!$A$3:$AX$41,29,FALSE) -> 54 | L17: =+VLOOKUP($A17,'Data Input'!$A$3:$AX$41,31,FALSE) -> 15
A18: 10 | B18: =+VLOOKUP(+$A18,'Data Input'!$A$3:$AX$41,2,FALSE) -> Flight | C18: =+VLOOKUP(+$A18,'Data Input'!$A$3:$AX$41,3,FALSE) -> J Farrow | D18: =+VLOOKUP(+$A18,'Data Input'!$A$3:$AX$41,4,FALSE) -> 29.9 | E18: =+VLOOKUP(+$A18,'Data Input'!$A$3:$AX$41,5,FALSE) -> -8 | F18: =+VLOOKUP(+$A18,'Data Input'!$A$3:$AX$41,6,FALSE) -> 0 | G18: =+VLOOKUP(+$A18,'Data Input'!$A$3:$AX$41,7,FALSE) -> A | H18: =+VLOOKUP($A18,'Data Input'!$A$3:$AX$41,27,FALSE) -> 5 | I18: =+VLOOKUP($A18,'Data Input'!$A$3:$AX$41,28,FALSE) -> 10 | J18: =+VLOOKUP($A18,'Data Input'!$A$3:$AX$41,29,FALSE) -> 18 | L18: =+VLOOKUP($A18,'Data Input'!$A$3:$AX$41,31,FALSE) -> 16
A19: 224 | B19: =+VLOOKUP(+$A19,'Data Input'!$A$3:$AX$41,2,FALSE) -> Anna | C19: =+VLOOKUP(+$A19,'Data Input'!$A$3:$AX$41,3,FALSE) -> R Branscombe | D19: =+VLOOKUP(+$A19,'Data Input'!$A$3:$AX$41,4,FALSE) -> 25 | E19: =+VLOOKUP(+$A19,'Data Input'!$A$3:$AX$41,5,FALSE) -> -10 | F19: =+VLOOKUP(+$A19,'Data Input'!$A$3:$AX$41,6,FALSE) -> 0 | G19: =+VLOOKUP(+$A19,'Data Input'!$A$3:$AX$41,7,FALSE) -> B | H19: =+VLOOKUP($A19,'Data Input'!$A$3:$AX$41,27,FALSE) -> 5 | I19: =+VLOOKUP($A19,'Data Input'!$A$3:$AX$41,28,FALSE) -> 11 | J19: =+VLOOKUP($A19,'Data Input'!$A$3:$AX$41,29,FALSE) -> 12 | L19: =+VLOOKUP($A19,'Data Input'!$A$3:$AX$41,31,FALSE) -> 17
A20: 25 | B20: =+VLOOKUP(+$A20,'Data Input'!$A$3:$AX$41,2,FALSE) -> Melody | C20: =+VLOOKUP(+$A20,'Data Input'!$A$3:$AX$41,3,FALSE) -> M Wells | D20: =+VLOOKUP(+$A20,'Data Input'!$A$3:$AX$41,4,FALSE) -> 26 | E20: =+VLOOKUP(+$A20,'Data Input'!$A$3:$AX$41,5,FALSE) -> -10 | F20: =+VLOOKUP(+$A20,'Data Input'!$A$3:$AX$41,6,FALSE) -> 0 | G20: =+VLOOKUP(+$A20,'Data Input'!$A$3:$AX$41,7,FALSE) -> B | H20: =+VLOOKUP($A20,'Data Input'!$A$3:$AX$41,27,FALSE) -> 5 | I20: =+VLOOKUP($A20,'Data Input'!$A$3:$AX$41,28,FALSE) -> 29 | J20: =+VLOOKUP($A20,'Data Input'!$A$3:$AX$41,29,FALSE) -> 57 | L20: =+VLOOKUP($A20,'Data Input'!$A$3:$AX$41,31,FALSE) -> 18
A21: 87 | B21: =+VLOOKUP(+$A21,'Data Input'!$A$3:$AX$41,2,FALSE) -> Modwena | C21: =+VLOOKUP(+$A21,'Data Input'!$A$3:$AX$41,3,FALSE) -> M Cassidy | D21: =+VLOOKUP(+$A21,'Data Input'!$A$3:$AX$41,4,FALSE) -> 24.8 | E21: =+VLOOKUP(+$A21,'Data Input'!$A$3:$AX$41,5,FALSE) -> -19 | F21: =+VLOOKUP(+$A21,'Data Input'!$A$3:$AX$41,6,FALSE) -> 0 | G21: =+VLOOKUP(+$A21,'Data Input'!$A$3:$AX$41,7,FALSE) -> C | H21: =+VLOOKUP($A21,'Data Input'!$A$3:$AX$41,27,FALSE) -> 5 | I21: =+VLOOKUP($A21,'Data Input'!$A$3:$AX$41,28,FALSE) -> 37 | J21: =+VLOOKUP($A21,'Data Input'!$A$3:$AX$41,29,FALSE) -> 2 | L21: =+VLOOKUP($A21,'Data Input'!$A$3:$AX$41,31,FALSE) -> 19
A22: 429 | B22: =+VLOOKUP(+$A22,'Data Input'!$A$3:$AX$41,2,FALSE) -> Pickle | C22: =+VLOOKUP(+$A22,'Data Input'!$A$3:$AX$41,3,FALSE) -> P Montague | D22: =+VLOOKUP(+$A22,'Data Input'!$A$3:$AX$41,4,FALSE) -> 22.6 | E22: =+VLOOKUP(+$A22,'Data Input'!$A$3:$AX$41,5,FALSE) -> -17 | F22: =+VLOOKUP(+$A22,'Data Input'!$A$3:$AX$41,6,FALSE) -> 0 | G22: =+VLOOKUP(+$A22,'Data Input'!$A$3:$AX$41,7,FALSE) -> C | H22: =+VLOOKUP($A22,'Data Input'!$A$3:$AX$41,27,FALSE) -> 5 | I22: =+VLOOKUP($A22,'Data Input'!$A$3:$AX$41,28,FALSE) -> 51 | J22: =+VLOOKUP($A22,'Data Input'!$A$3:$AX$41,29,FALSE) -> 54 | L22: =+VLOOKUP($A22,'Data Input'!$A$3:$AX$41,31,FALSE) -> 20
A23: 79 | B23: =+VLOOKUP(+$A23,'Data Input'!$A$3:$AX$41,2,FALSE) -> Daisy | C23: =+VLOOKUP(+$A23,'Data Input'!$A$3:$AX$41,3,FALSE) -> T Ford | D23: =+VLOOKUP(+$A23,'Data Input'!$A$3:$AX$41,4,FALSE) -> 22 | E23: =+VLOOKUP(+$A23,'Data Input'!$A$3:$AX$41,5,FALSE) -> -21 | F23: =+VLOOKUP(+$A23,'Data Input'!$A$3:$AX$41,6,FALSE) -> 0 | G23: =+VLOOKUP(+$A23,'Data Input'!$A$3:$AX$41,7,FALSE) -> C | H23: =+VLOOKUP($A23,'Data Input'!$A$3:$AX$41,27,FALSE) -> 6 | I23: =+VLOOKUP($A23,'Data Input'!$A$3:$AX$41,28,FALSE) -> 59 | J23: =+VLOOKUP($A23,'Data Input'!$A$3:$AX$41,29,FALSE) -> 36 | L23: =+VLOOKUP($A23,'Data Input'!$A$3:$AX$41,31,FALSE) -> 21
A24: 22 | B24: =+VLOOKUP(+$A24,'Data Input'!$A$3:$AX$41,2,FALSE) -> Moonraker | C24: =+VLOOKUP(+$A24,'Data Input'!$A$3:$AX$41,3,FALSE) -> P Jeckells | D24: =+VLOOKUP(+$A24,'Data Input'!$A$3:$AX$41,4,FALSE) -> 29.5 | E24: =+VLOOKUP(+$A24,'Data Input'!$A$3:$AX$41,5,FALSE) -> 2 | F24: =+VLOOKUP(+$A24,'Data Input'!$A$3:$AX$41,6,FALSE) -> DNS | G24: =+VLOOKUP(+$A24,'Data Input'!$A$3:$AX$41,7,FALSE) -> A | H24: =+VLOOKUP($A24,'Data Input'!$A$3:$AX$41,27,FALSE) -> 0 | I24: =+VLOOKUP($A24,'Data Input'!$A$3:$AX$41,28,FALSE) -> 0 | J24: =+VLOOKUP($A24,'Data Input'!$A$3:$AX$41,29,FALSE) -> 0 | L24: =+VLOOKUP($A24,'Data Input'!$A$3:$AX$41,31,FALSE) -> DNS
A25: 52 | B25: =+VLOOKUP(+$A25,'Data Input'!$A$3:$AX$41,2,FALSE) -> Maidie | C25: =+VLOOKUP(+$A25,'Data Input'!$A$3:$AX$41,3,FALSE) -> M Barnes | D25: =+VLOOKUP(+$A25,'Data Input'!$A$3:$AX$41,4,FALSE) -> 43.2 | E25: =+VLOOKUP(+$A25,'Data Input'!$A$3:$AX$41,5,FALSE) -> 13 | F25: =+VLOOKUP(+$A25,'Data Input'!$A$3:$AX$41,6,FALSE) -> DNS | G25: =+VLOOKUP(+$A25,'Data Input'!$A$3:$AX$41,7,FALSE) -> A | H25: =+VLOOKUP($A25,'Data Input'!$A$3:$AX$41,27,FALSE) -> 0 | I25: =+VLOOKUP($A25,'Data Input'!$A$3:$AX$41,28,FALSE) -> 0 | J25: =+VLOOKUP($A25,'Data Input'!$A$3:$AX$41,29,FALSE) -> 0 | L25: =+VLOOKUP($A25,'Data Input'!$A$3:$AX$41,31,FALSE) -> DNS
A26: 274 | B26: =+VLOOKUP(+$A26,'Data Input'!$A$3:$AX$41,2,FALSE) -> Elfin | C26: =+VLOOKUP(+$A26,'Data Input'!$A$3:$AX$41,3,FALSE) -> A Bond | D26: =+VLOOKUP(+$A26,'Data Input'!$A$3:$AX$41,4,FALSE) -> 21 | E26: =+VLOOKUP(+$A26,'Data Input'!$A$3:$AX$41,5,FALSE) -> -27 | F26: =+VLOOKUP(+$A26,'Data Input'!$A$3:$AX$41,6,FALSE) -> DNS | G26: =+VLOOKUP(+$A26,'Data Input'!$A$3:$AX$41,7,FALSE) -> C | H26: =+VLOOKUP($A26,'Data Input'!$A$3:$AX$41,27,FALSE) -> 0 | I26: =+VLOOKUP($A26,'Data Input'!$A$3:$AX$41,28,FALSE) -> 0 | J26: =+VLOOKUP($A26,'Data Input'!$A$3:$AX$41,29,FALSE) -> 0 | L26: =+VLOOKUP($A26,'Data Input'!$A$3:$AX$41,31,FALSE) -> DNS
A27: 335 | B27: =+VLOOKUP(+$A27,'Data Input'!$A$3:$AX$41,2,FALSE) -> Firebird | C27: =+VLOOKUP(+$A27,'Data Input'!$A$3:$AX$41,3,FALSE) -> R Richardson | D27: =+VLOOKUP(+$A27,'Data Input'!$A$3:$AX$41,4,FALSE) -> 30 | E27: =+VLOOKUP(+$A27,'Data Input'!$A$3:$AX$41,5,FALSE) -> 1 | F27: =+VLOOKUP(+$A27,'Data Input'!$A$3:$AX$41,6,FALSE) -> DNS | G27: =+VLOOKUP(+$A27,'Data Input'!$A$3:$AX$41,7,FALSE) -> A | H27: =+VLOOKUP($A27,'Data Input'!$A$3:$AX$41,27,FALSE) -> 0 | I27: =+VLOOKUP($A27,'Data Input'!$A$3:$AX$41,28,FALSE) -> 0 | J27: =+VLOOKUP($A27,'Data Input'!$A$3:$AX$41,29,FALSE) -> 0 | L27: =+VLOOKUP($A27,'Data Input'!$A$3:$AX$41,31,FALSE) -> DNS
A28: 141 | B28: =+VLOOKUP(+$A28,'Data Input'!$A$3:$AX$41,2,FALSE) -> Nirvana | C28: =+VLOOKUP(+$A28,'Data Input'!$A$3:$AX$41,3,FALSE) -> M Claridge | D28: =+VLOOKUP(+$A28,'Data Input'!$A$3:$AX$41,4,FALSE) -> 20 | E28: =+VLOOKUP(+$A28,'Data Input'!$A$3:$AX$41,5,FALSE) -> -23 | F28: =+VLOOKUP(+$A28,'Data Input'!$A$3:$AX$41,6,FALSE) -> P | G28: =+VLOOKUP(+$A28,'Data Input'!$A$3:$AX$41,7,FALSE) -> C | H28: =+VLOOKUP($A28,'Data Input'!$A$3:$AX$41,27,FALSE) -> 6 | I28: =+VLOOKUP($A28,'Data Input'!$A$3:$AX$41,28,FALSE) -> 12 | J28: =+VLOOKUP($A28,'Data Input'!$A$3:$AX$41,29,FALSE) -> 55 | L28: =+VLOOKUP($A28,'Data Input'!$A$3:$AX$41,31,FALSE) -> P
A29: 6 | B29: =+VLOOKUP(+$A29,'Data Input'!$A$3:$AX$41,2,FALSE) -> Dragonfly | C29: =+VLOOKUP(+$A29,'Data Input'!$A$3:$AX$41,3,FALSE) -> S Simpson | D29: =+VLOOKUP(+$A29,'Data Input'!$A$3:$AX$41,4,FALSE) -> 38 | E29: =+VLOOKUP(+$A29,'Data Input'!$A$3:$AX$41,5,FALSE) -> -13 | F29: =+VLOOKUP(+$A29,'Data Input'!$A$3:$AX$41,6,FALSE) -> W | G29: =+VLOOKUP(+$A29,'Data Input'!$A$3:$AX$41,7,FALSE) -> A | H29: =+VLOOKUP($A29,'Data Input'!$A$3:$AX$41,27,FALSE) -> 10 | I29: =+VLOOKUP($A29,'Data Input'!$A$3:$AX$41,28,FALSE) -> 14 | J29: =+VLOOKUP($A29,'Data Input'!$A$3:$AX$41,29,FALSE) -> 34 | L29: =+VLOOKUP($A29,'Data Input'!$A$3:$AX$41,31,FALSE) -> W
A30: 155 | B30: =+VLOOKUP(+$A30,'Data Input'!$A$3:$AX$41,2,FALSE) -> Stratus | C30: =+VLOOKUP(+$A30,'Data Input'!$A$3:$AX$41,3,FALSE) -> J Townley | D30: =+VLOOKUP(+$A30,'Data Input'!$A$3:$AX$41,4,FALSE) -> 22.6 | E30: =+VLOOKUP(+$A30,'Data Input'!$A$3:$AX$41,5,FALSE) -> -17 | F30: =+VLOOKUP(+$A30,'Data Input'!$A$3:$AX$41,6,FALSE) -> W | G30: =+VLOOKUP(+$A30,'Data Input'!$A$3:$AX$41,7,FALSE) -> C | H30: =+VLOOKUP($A30,'Data Input'!$A$3:$AX$41,27,FALSE) -> 9 | I30: =+VLOOKUP($A30,'Data Input'!$A$3:$AX$41,28,FALSE) -> 5 | J30: =+VLOOKUP($A30,'Data Input'!$A$3:$AX$41,29,FALSE) -> 38 | L30: =+VLOOKUP($A30,'Data Input'!$A$3:$AX$41,31,FALSE) -> W
A31: 177 | B31: =+VLOOKUP(+$A31,'Data Input'!$A$3:$AX$41,2,FALSE) -> Breeze | C31: =+VLOOKUP(+$A31,'Data Input'!$A$3:$AX$41,3,FALSE) -> M Ellis | D31: =+VLOOKUP(+$A31,'Data Input'!$A$3:$AX$41,4,FALSE) -> 32 | E31: =+VLOOKUP(+$A31,'Data Input'!$A$3:$AX$41,5,FALSE) -> 3 | F31: =+VLOOKUP(+$A31,'Data Input'!$A$3:$AX$41,6,FALSE) -> W | G31: =+VLOOKUP(+$A31,'Data Input'!$A$3:$AX$41,7,FALSE) -> A | H31: =+VLOOKUP($A31,'Data Input'!$A$3:$AX$41,27,FALSE) -> 9 | I31: =+VLOOKUP($A31,'Data Input'!$A$3:$AX$41,28,FALSE) -> 15 | J31: =+VLOOKUP($A31,'Data Input'!$A$3:$AX$41,29,FALSE) -> 38 | L31: =+VLOOKUP($A31,'Data Input'!$A$3:$AX$41,31,FALSE) -> W
A32: 219 | B32: =+VLOOKUP(+$A32,'Data Input'!$A$3:$AX$41,2,FALSE) -> Farthing | C32: =+VLOOKUP(+$A32,'Data Input'!$A$3:$AX$41,3,FALSE) -> M Farrar | D32: =+VLOOKUP(+$A32,'Data Input'!$A$3:$AX$41,4,FALSE) -> 36 | E32: =+VLOOKUP(+$A32,'Data Input'!$A$3:$AX$41,5,FALSE) -> 3 | F32: =+VLOOKUP(+$A32,'Data Input'!$A$3:$AX$41,6,FALSE) -> W | G32: =+VLOOKUP(+$A32,'Data Input'!$A$3:$AX$41,7,FALSE) -> A | H32: =+VLOOKUP($A32,'Data Input'!$A$3:$AX$41,27,FALSE) -> 9 | I32: =+VLOOKUP($A32,'Data Input'!$A$3:$AX$41,28,FALSE) -> 42 | J32: =+VLOOKUP($A32,'Data Input'!$A$3:$AX$41,29,FALSE) -> 15 | L32: =+VLOOKUP($A32,'Data Input'!$A$3:$AX$41,31,FALSE) -> W
A33: 240 | B33: =+VLOOKUP(+$A33,'Data Input'!$A$3:$AX$41,2,FALSE) -> Avocet | C33: =+VLOOKUP(+$A33,'Data Input'!$A$3:$AX$41,3,FALSE) -> R Branford | D33: =+VLOOKUP(+$A33,'Data Input'!$A$3:$AX$41,4,FALSE) -> 28 | E33: =+VLOOKUP(+$A33,'Data Input'!$A$3:$AX$41,5,FALSE) -> -16 | F33: =+VLOOKUP(+$A33,'Data Input'!$A$3:$AX$41,6,FALSE) -> W | G33: =+VLOOKUP(+$A33,'Data Input'!$A$3:$AX$41,7,FALSE) -> B | H33: =+VLOOKUP($A33,'Data Input'!$A$3:$AX$41,27,FALSE) -> 9 | I33: =+VLOOKUP($A33,'Data Input'!$A$3:$AX$41,28,FALSE) -> 33 | J33: =+VLOOKUP($A33,'Data Input'!$A$3:$AX$41,29,FALSE) -> 54 | L33: =+VLOOKUP($A33,'Data Input'!$A$3:$AX$41,31,FALSE) -> W
A34: 416 | B34: =+VLOOKUP(+$A34,'Data Input'!$A$3:$AX$41,2,FALSE) -> Alice Rose | C34: =+VLOOKUP(+$A34,'Data Input'!$A$3:$AX$41,3,FALSE) -> D Radley | D34: =+VLOOKUP(+$A34,'Data Input'!$A$3:$AX$41,4,FALSE) -> 28.5 | E34: =+VLOOKUP(+$A34,'Data Input'!$A$3:$AX$41,5,FALSE) -> -7 | F34: =+VLOOKUP(+$A34,'Data Input'!$A$3:$AX$41,6,FALSE) -> W | G34: =+VLOOKUP(+$A34,'Data Input'!$A$3:$AX$41,7,FALSE) -> A | H34: =+VLOOKUP($A34,'Data Input'!$A$3:$AX$41,27,FALSE) -> 9 | I34: =+VLOOKUP($A34,'Data Input'!$A$3:$AX$41,28,FALSE) -> 13 | J34: =+VLOOKUP($A34,'Data Input'!$A$3:$AX$41,29,FALSE) -> 52 | L34: =+VLOOKUP($A34,'Data Input'!$A$3:$AX$41,31,FALSE) -> W
A35: 109 | B35: =+VLOOKUP(+$A35,'Data Input'!$A$3:$AX$41,2,FALSE) -> Kingfisher | C35: =+VLOOKUP(+$A35,'Data Input'!$A$3:$AX$41,3,FALSE) -> J Flatman | D35: =+VLOOKUP(+$A35,'Data Input'!$A$3:$AX$41,4,FALSE) -> 24.5 | E35: =+VLOOKUP(+$A35,'Data Input'!$A$3:$AX$41,5,FALSE) -> -19 | F35: =+VLOOKUP(+$A35,'Data Input'!$A$3:$AX$41,6,FALSE) -> W | G35: =+VLOOKUP(+$A35,'Data Input'!$A$3:$AX$41,7,FALSE) -> C | H35: =+VLOOKUP($A35,'Data Input'!$A$3:$AX$41,27,FALSE) -> 9 | I35: =+VLOOKUP($A35,'Data Input'!$A$3:$AX$41,28,FALSE) -> 10 | J35: =+VLOOKUP($A35,'Data Input'!$A$3:$AX$41,29,FALSE) -> 0 | L35: =+VLOOKUP($A35,'Data Input'!$A$3:$AX$41,31,FALSE) -> W
A42: =COUNT(A3:A41) -> 33

Sheet Classes
I1: Corrected | O1: Don’t use filters on this page
A2: No | B2: Yacht | C2: Skipper | D2: Length | E2: H/C | F2: P | G2: Class | H2: H | I2: M | J2: S | L2: Pos | O2: Sort will place into clases and then order. You can then insert rows with Trophy Name before printing
A3: 6 | B3: =+VLOOKUP(+$A3,'Data Input'!$A$3:$AX$41,2,FALSE) -> Dragonfly | C3: =+VLOOKUP(+$A3,'Data Input'!$A$3:$AX$41,3,FALSE) -> S Simpson | D3: =+VLOOKUP(+$A3,'Data Input'!$A$3:$AX$41,4,FALSE) -> 38 | E3: =+VLOOKUP(+$A3,'Data Input'!$A$3:$AX$41,5,FALSE) -> -13 | F3: =+VLOOKUP(+$A3,'Data Input'!$A$3:$AX$41,6,FALSE) -> W | G3: =+VLOOKUP(+$A3,'Data Input'!$A$3:$AX$41,7,FALSE) -> A | H3: =+VLOOKUP($A3,'Data Input'!$A$3:$AX$41,33,FALSE) -> 8 | I3: =+VLOOKUP($A3,'Data Input'!$A$3:$AX$41,34,FALSE) -> 54 | J3: =+VLOOKUP($A3,'Data Input'!$A$3:$AX$41,35,FALSE) -> 40.38 | L3: =+VLOOKUP($A3,'Data Input'!$A$3:$AX$41,37,FALSE) -> W | O3: Starlight Lady
A4: 10 | B4: =+VLOOKUP(+$A4,'Data Input'!$A$3:$AX$41,2,FALSE) -> Flight | C4: =+VLOOKUP(+$A4,'Data Input'!$A$3:$AX$41,3,FALSE) -> J Farrow | D4: =+VLOOKUP(+$A4,'Data Input'!$A$3:$AX$41,4,FALSE) -> 29.9 | E4: =+VLOOKUP(+$A4,'Data Input'!$A$3:$AX$41,5,FALSE) -> -8 | F4: =+VLOOKUP(+$A4,'Data Input'!$A$3:$AX$41,6,FALSE) -> 0 | G4: =+VLOOKUP(+$A4,'Data Input'!$A$3:$AX$41,7,FALSE) -> A | H4: =+VLOOKUP($A4,'Data Input'!$A$3:$AX$41,33,FALSE) -> 4 | I4: =+VLOOKUP($A4,'Data Input'!$A$3:$AX$41,34,FALSE) -> 45 | J4: =+VLOOKUP($A4,'Data Input'!$A$3:$AX$41,35,FALSE) -> 28.56 | L4: =+VLOOKUP($A4,'Data Input'!$A$3:$AX$41,37,FALSE) -> 14 | O4: Jeckells
A5: 22 | B5: =+VLOOKUP(+$A5,'Data Input'!$A$3:$AX$41,2,FALSE) -> Moonraker | C5: =+VLOOKUP(+$A5,'Data Input'!$A$3:$AX$41,3,FALSE) -> P Jeckells | D5: =+VLOOKUP(+$A5,'Data Input'!$A$3:$AX$41,4,FALSE) -> 29.5 | E5: =+VLOOKUP(+$A5,'Data Input'!$A$3:$AX$41,5,FALSE) -> 2 | F5: =+VLOOKUP(+$A5,'Data Input'!$A$3:$AX$41,6,FALSE) -> DNS | G5: =+VLOOKUP(+$A5,'Data Input'!$A$3:$AX$41,7,FALSE) -> A | H5: =+VLOOKUP($A5,'Data Input'!$A$3:$AX$41,33,FALSE) -> 0 | I5: =+VLOOKUP($A5,'Data Input'!$A$3:$AX$41,34,FALSE) -> 0 | J5: =+VLOOKUP($A5,'Data Input'!$A$3:$AX$41,35,FALSE) -> 0 | L5: =+VLOOKUP($A5,'Data Input'!$A$3:$AX$41,37,FALSE) -> DNS | O5: Wilberforce Smith
A6: 52 | B6: =+VLOOKUP(+$A6,'Data Input'!$A$3:$AX$41,2,FALSE) -> Maidie | C6: =+VLOOKUP(+$A6,'Data Input'!$A$3:$AX$41,3,FALSE) -> M Barnes | D6: =+VLOOKUP(+$A6,'Data Input'!$A$3:$AX$41,4,FALSE) -> 43.2 | E6: =+VLOOKUP(+$A6,'Data Input'!$A$3:$AX$41,5,FALSE) -> 13 | F6: =+VLOOKUP(+$A6,'Data Input'!$A$3:$AX$41,6,FALSE) -> DNS | G6: =+VLOOKUP(+$A6,'Data Input'!$A$3:$AX$41,7,FALSE) -> A | H6: =+VLOOKUP($A6,'Data Input'!$A$3:$AX$41,33,FALSE) -> 0 | I6: =+VLOOKUP($A6,'Data Input'!$A$3:$AX$41,34,FALSE) -> 0 | J6: =+VLOOKUP($A6,'Data Input'!$A$3:$AX$41,35,FALSE) -> 0 | L6: =+VLOOKUP($A6,'Data Input'!$A$3:$AX$41,37,FALSE) -> DNS
A7: 152 | B7: =+VLOOKUP(+$A7,'Data Input'!$A$3:$AX$41,2,FALSE) -> Sabrina 2 | C7: =+VLOOKUP(+$A7,'Data Input'!$A$3:$AX$41,3,FALSE) -> J Holmes | D7: =+VLOOKUP(+$A7,'Data Input'!$A$3:$AX$41,4,FALSE) -> 29 | E7: =+VLOOKUP(+$A7,'Data Input'!$A$3:$AX$41,5,FALSE) -> -7 | F7: =+VLOOKUP(+$A7,'Data Input'!$A$3:$AX$41,6,FALSE) -> 0 | G7: =+VLOOKUP(+$A7,'Data Input'!$A$3:$AX$41,7,FALSE) -> A | H7: =+VLOOKUP($A7,'Data Input'!$A$3:$AX$41,33,FALSE) -> 4 | I7: =+VLOOKUP($A7,'Data Input'!$A$3:$AX$41,34,FALSE) -> 36 | J7: =+VLOOKUP($A7,'Data Input'!$A$3:$AX$41,35,FALSE) -> 56.31 | L7: =+VLOOKUP($A7,'Data Input'!$A$3:$AX$41,37,FALSE) -> 7
A8: 177 | B8: =+VLOOKUP(+$A8,'Data Input'!$A$3:$AX$41,2,FALSE) -> Breeze | C8: =+VLOOKUP(+$A8,'Data Input'!$A$3:$AX$41,3,FALSE) -> M Ellis | D8: =+VLOOKUP(+$A8,'Data Input'!$A$3:$AX$41,4,FALSE) -> 32 | E8: =+VLOOKUP(+$A8,'Data Input'!$A$3:$AX$41,5,FALSE) -> 3 | F8: =+VLOOKUP(+$A8,'Data Input'!$A$3:$AX$41,6,FALSE) -> W | G8: =+VLOOKUP(+$A8,'Data Input'!$A$3:$AX$41,7,FALSE) -> A | H8: =+VLOOKUP($A8,'Data Input'!$A$3:$AX$41,33,FALSE) -> 9 | I8: =+VLOOKUP($A8,'Data Input'!$A$3:$AX$41,34,FALSE) -> 32 | J8: =+VLOOKUP($A8,'Data Input'!$A$3:$AX$41,35,FALSE) -> 18.14 | L8: =+VLOOKUP($A8,'Data Input'!$A$3:$AX$41,37,FALSE) -> W
A9: 219 | B9: =+VLOOKUP(+$A9,'Data Input'!$A$3:$AX$41,2,FALSE) -> Farthing | C9: =+VLOOKUP(+$A9,'Data Input'!$A$3:$AX$41,3,FALSE) -> M Farrar | D9: =+VLOOKUP(+$A9,'Data Input'!$A$3:$AX$41,4,FALSE) -> 36 | E9: =+VLOOKUP(+$A9,'Data Input'!$A$3:$AX$41,5,FALSE) -> 3 | F9: =+VLOOKUP(+$A9,'Data Input'!$A$3:$AX$41,6,FALSE) -> W | G9: =+VLOOKUP(+$A9,'Data Input'!$A$3:$AX$41,7,FALSE) -> A | H9: =+VLOOKUP($A9,'Data Input'!$A$3:$AX$41,33,FALSE) -> 9 | I9: =+VLOOKUP($A9,'Data Input'!$A$3:$AX$41,34,FALSE) -> 59 | J9: =+VLOOKUP($A9,'Data Input'!$A$3:$AX$41,35,FALSE) -> 43.05 | L9: =+VLOOKUP($A9,'Data Input'!$A$3:$AX$41,37,FALSE) -> W
A10: 323 | B10: =+VLOOKUP(+$A10,'Data Input'!$A$3:$AX$41,2,FALSE) -> Starlight Lady | C10: =+VLOOKUP(+$A10,'Data Input'!$A$3:$AX$41,3,FALSE) -> N.Matthews | D10: =+VLOOKUP(+$A10,'Data Input'!$A$3:$AX$41,4,FALSE) -> 30 | E10: =+VLOOKUP(+$A10,'Data Input'!$A$3:$AX$41,5,FALSE) -> 13 | F10: =+VLOOKUP(+$A10,'Data Input'!$A$3:$AX$41,6,FALSE) -> 0 | G10: =+VLOOKUP(+$A10,'Data Input'!$A$3:$AX$41,7,FALSE) -> A | H10: =+VLOOKUP($A10,'Data Input'!$A$3:$AX$41,33,FALSE) -> 4 | I10: =+VLOOKUP($A10,'Data Input'!$A$3:$AX$41,34,FALSE) -> 36 | J10: =+VLOOKUP($A10,'Data Input'!$A$3:$AX$41,35,FALSE) -> 52.13 | L10: =+VLOOKUP($A10,'Data Input'!$A$3:$AX$41,37,FALSE) -> 6
A11: 335 | B11: =+VLOOKUP(+$A11,'Data Input'!$A$3:$AX$41,2,FALSE) -> Firebird | C11: =+VLOOKUP(+$A11,'Data Input'!$A$3:$AX$41,3,FALSE) -> R Richardson | D11: =+VLOOKUP(+$A11,'Data Input'!$A$3:$AX$41,4,FALSE) -> 30 | E11: =+VLOOKUP(+$A11,'Data Input'!$A$3:$AX$41,5,FALSE) -> 1 | F11: =+VLOOKUP(+$A11,'Data Input'!$A$3:$AX$41,6,FALSE) -> DNS | G11: =+VLOOKUP(+$A11,'Data Input'!$A$3:$AX$41,7,FALSE) -> A | H11: =+VLOOKUP($A11,'Data Input'!$A$3:$AX$41,33,FALSE) -> 0 | I11: =+VLOOKUP($A11,'Data Input'!$A$3:$AX$41,34,FALSE) -> 0 | J11: =+VLOOKUP($A11,'Data Input'!$A$3:$AX$41,35,FALSE) -> 0 | L11: =+VLOOKUP($A11,'Data Input'!$A$3:$AX$41,37,FALSE) -> DNS
A12: 368 | B12: =+VLOOKUP(+$A12,'Data Input'!$A$3:$AX$41,2,FALSE) -> Wandering Rose | C12: =+VLOOKUP(+$A12,'Data Input'!$A$3:$AX$41,3,FALSE) -> Radley | D12: =+VLOOKUP(+$A12,'Data Input'!$A$3:$AX$41,4,FALSE) -> 31 | E12: =+VLOOKUP(+$A12,'Data Input'!$A$3:$AX$41,5,FALSE) -> -2 | F12: =+VLOOKUP(+$A12,'Data Input'!$A$3:$AX$41,6,FALSE) -> 0 | G12: =+VLOOKUP(+$A12,'Data Input'!$A$3:$AX$41,7,FALSE) -> A | H12: =+VLOOKUP($A12,'Data Input'!$A$3:$AX$41,33,FALSE) -> 4 | I12: =+VLOOKUP($A12,'Data Input'!$A$3:$AX$41,34,FALSE) -> 27 | J12: =+VLOOKUP($A12,'Data Input'!$A$3:$AX$41,35,FALSE) -> 25.54 | L12: =+VLOOKUP($A12,'Data Input'!$A$3:$AX$41,37,FALSE) -> 3
A13: 369 | B13: =+VLOOKUP(+$A13,'Data Input'!$A$3:$AX$41,2,FALSE) -> Moonshadow | C13: =+VLOOKUP(+$A13,'Data Input'!$A$3:$AX$41,3,FALSE) -> N Hovey | D13: =+VLOOKUP(+$A13,'Data Input'!$A$3:$AX$41,4,FALSE) -> 31.5 | E13: =+VLOOKUP(+$A13,'Data Input'!$A$3:$AX$41,5,FALSE) -> 4 | F13: =+VLOOKUP(+$A13,'Data Input'!$A$3:$AX$41,6,FALSE) ->  | G13: =+VLOOKUP(+$A13,'Data Input'!$A$3:$AX$41,7,FALSE) -> A | H13: =+VLOOKUP($A13,'Data Input'!$A$3:$AX$41,33,FALSE) -> 4 | I13: =+VLOOKUP($A13,'Data Input'!$A$3:$AX$41,34,FALSE) -> 45 | J13: =+VLOOKUP($A13,'Data Input'!$A$3:$AX$41,35,FALSE) -> 34 | L13: =+VLOOKUP($A13,'Data Input'!$A$3:$AX$41,37,FALSE) -> 15
A14: 370 | B14: =+VLOOKUP(+$A14,'Data Input'!$A$3:$AX$41,2,FALSE) -> Glory | C14: =+VLOOKUP(+$A14,'Data Input'!$A$3:$AX$41,3,FALSE) -> C Brown | D14: =+VLOOKUP(+$A14,'Data Input'!$A$3:$AX$41,4,FALSE) -> 35 | E14: =+VLOOKUP(+$A14,'Data Input'!$A$3:$AX$41,5,FALSE) -> -6 | F14: =+VLOOKUP(+$A14,'Data Input'!$A$3:$AX$41,6,FALSE) ->  | G14: =+VLOOKUP(+$A14,'Data Input'!$A$3:$AX$41,7,FALSE) -> A | H14: =+VLOOKUP($A14,'Data Input'!$A$3:$AX$41,33,FALSE) -> 4 | I14: =+VLOOKUP($A14,'Data Input'!$A$3:$AX$41,34,FALSE) -> 21 | J14: =+VLOOKUP($A14,'Data Input'!$A$3:$AX$41,35,FALSE) -> 5.1 | L14: =+VLOOKUP($A14,'Data Input'!$A$3:$AX$41,37,FALSE) -> 1
A15: 373 | B15: =+VLOOKUP(+$A15,'Data Input'!$A$3:$AX$41,2,FALSE) -> Meggie | C15: =+VLOOKUP(+$A15,'Data Input'!$A$3:$AX$41,3,FALSE) -> J Tansley | D15: =+VLOOKUP(+$A15,'Data Input'!$A$3:$AX$41,4,FALSE) -> 34.9 | E15: =+VLOOKUP(+$A15,'Data Input'!$A$3:$AX$41,5,FALSE) -> 13 | F15: =+VLOOKUP(+$A15,'Data Input'!$A$3:$AX$41,6,FALSE) ->  | G15: =+VLOOKUP(+$A15,'Data Input'!$A$3:$AX$41,7,FALSE) -> A | H15: =+VLOOKUP($A15,'Data Input'!$A$3:$AX$41,33,FALSE) -> 5 | I15: =+VLOOKUP($A15,'Data Input'!$A$3:$AX$41,34,FALSE) -> 4 | J15: =+VLOOKUP($A15,'Data Input'!$A$3:$AX$41,35,FALSE) -> 21.93 | L15: =+VLOOKUP($A15,'Data Input'!$A$3:$AX$41,37,FALSE) -> 20
A16: 417 | B16: =+VLOOKUP(+$A16,'Data Input'!$A$3:$AX$41,2,FALSE) -> Stellar | C16: =+VLOOKUP(+$A16,'Data Input'!$A$3:$AX$41,3,FALSE) -> T Frary | D16: =+VLOOKUP(+$A16,'Data Input'!$A$3:$AX$41,4,FALSE) -> 31.3 | E16: =+VLOOKUP(+$A16,'Data Input'!$A$3:$AX$41,5,FALSE) -> 17 | F16: =+VLOOKUP(+$A16,'Data Input'!$A$3:$AX$41,6,FALSE) -> 0 | G16: =+VLOOKUP(+$A16,'Data Input'!$A$3:$AX$41,7,FALSE) -> A | H16: =+VLOOKUP($A16,'Data Input'!$A$3:$AX$41,33,FALSE) -> 4 | I16: =+VLOOKUP($A16,'Data Input'!$A$3:$AX$41,34,FALSE) -> 51 | J16: =+VLOOKUP($A16,'Data Input'!$A$3:$AX$41,35,FALSE) -> 38.52 | L16: =+VLOOKUP($A16,'Data Input'!$A$3:$AX$41,37,FALSE) -> 16
A17: 25 | B17: =+VLOOKUP(+$A17,'Data Input'!$A$3:$AX$41,2,FALSE) -> Melody | C17: =+VLOOKUP(+$A17,'Data Input'!$A$3:$AX$41,3,FALSE) -> M Wells | D17: =+VLOOKUP(+$A17,'Data Input'!$A$3:$AX$41,4,FALSE) -> 26 | E17: =+VLOOKUP(+$A17,'Data Input'!$A$3:$AX$41,5,FALSE) -> -10 | F17: =+VLOOKUP(+$A17,'Data Input'!$A$3:$AX$41,6,FALSE) -> 0 | G17: =+VLOOKUP(+$A17,'Data Input'!$A$3:$AX$41,7,FALSE) -> B | H17: =+VLOOKUP($A17,'Data Input'!$A$3:$AX$41,33,FALSE) -> 4 | I17: =+VLOOKUP($A17,'Data Input'!$A$3:$AX$41,34,FALSE) -> 56 | J17: =+VLOOKUP($A17,'Data Input'!$A$3:$AX$41,35,FALSE) -> 57.3 | L17: =+VLOOKUP($A17,'Data Input'!$A$3:$AX$41,37,FALSE) -> 18
A18: 179 | B18: =+VLOOKUP(+$A18,'Data Input'!$A$3:$AX$41,2,FALSE) -> Waxwing | C18: =+VLOOKUP(+$A18,'Data Input'!$A$3:$AX$41,3,FALSE) -> S Clayton | D18: =+VLOOKUP(+$A18,'Data Input'!$A$3:$AX$41,4,FALSE) -> 28 | E18: =+VLOOKUP(+$A18,'Data Input'!$A$3:$AX$41,5,FALSE) -> -8 | F18: =+VLOOKUP(+$A18,'Data Input'!$A$3:$AX$41,6,FALSE) -> 0 | G18: =+VLOOKUP(+$A18,'Data Input'!$A$3:$AX$41,7,FALSE) -> B | H18: =+VLOOKUP($A18,'Data Input'!$A$3:$AX$41,33,FALSE) -> 4 | I18: =+VLOOKUP($A18,'Data Input'!$A$3:$AX$41,34,FALSE) -> 34 | J18: =+VLOOKUP($A18,'Data Input'!$A$3:$AX$41,35,FALSE) -> 17.88 | L18: =+VLOOKUP($A18,'Data Input'!$A$3:$AX$41,37,FALSE) -> 5
A19: 199 | B19: =+VLOOKUP(+$A19,'Data Input'!$A$3:$AX$41,2,FALSE) -> Morning Calm | C19: =+VLOOKUP(+$A19,'Data Input'!$A$3:$AX$41,3,FALSE) -> W Clark | D19: =+VLOOKUP(+$A19,'Data Input'!$A$3:$AX$41,4,FALSE) -> 26 | E19: =+VLOOKUP(+$A19,'Data Input'!$A$3:$AX$41,5,FALSE) -> -9 | F19: =+VLOOKUP(+$A19,'Data Input'!$A$3:$AX$41,6,FALSE) -> 0 | G19: =+VLOOKUP(+$A19,'Data Input'!$A$3:$AX$41,7,FALSE) -> B | H19: =+VLOOKUP($A19,'Data Input'!$A$3:$AX$41,33,FALSE) -> 4 | I19: =+VLOOKUP($A19,'Data Input'!$A$3:$AX$41,34,FALSE) -> 39 | J19: =+VLOOKUP($A19,'Data Input'!$A$3:$AX$41,35,FALSE) -> 26.75 | L19: =+VLOOKUP($A19,'Data Input'!$A$3:$AX$41,37,FALSE) -> 9
A20: 217 | B20: =+VLOOKUP(+$A20,'Data Input'!$A$3:$AX$41,2,FALSE) -> Melinda | C20: =+VLOOKUP(+$A20,'Data Input'!$A$3:$AX$41,3,FALSE) -> P Howes | D20: =+VLOOKUP(+$A20,'Data Input'!$A$3:$AX$41,4,FALSE) -> 27.9 | E20: =+VLOOKUP(+$A20,'Data Input'!$A$3:$AX$41,5,FALSE) -> 1 | F20: =+VLOOKUP(+$A20,'Data Input'!$A$3:$AX$41,6,FALSE) -> 0 | G20: =+VLOOKUP(+$A20,'Data Input'!$A$3:$AX$41,7,FALSE) -> B | H20: =+VLOOKUP($A20,'Data Input'!$A$3:$AX$41,33,FALSE) -> 5 | I20: =+VLOOKUP($A20,'Data Input'!$A$3:$AX$41,34,FALSE) -> 1 | J20: =+VLOOKUP($A20,'Data Input'!$A$3:$AX$41,35,FALSE) -> 38.19 | L20: =+VLOOKUP($A20,'Data Input'!$A$3:$AX$41,37,FALSE) -> 19
A21: 218 | B21: =+VLOOKUP(+$A21,'Data Input'!$A$3:$AX$41,2,FALSE) -> Mystery | C21: =+VLOOKUP(+$A21,'Data Input'!$A$3:$AX$41,3,FALSE) -> M Ford | D21: =+VLOOKUP(+$A21,'Data Input'!$A$3:$AX$41,4,FALSE) -> 26 | E21: =+VLOOKUP(+$A21,'Data Input'!$A$3:$AX$41,5,FALSE) -> -9 | F21: =+VLOOKUP(+$A21,'Data Input'!$A$3:$AX$41,6,FALSE) -> 0 | G21: =+VLOOKUP(+$A21,'Data Input'!$A$3:$AX$41,7,FALSE) -> B | H21: =+VLOOKUP($A21,'Data Input'!$A$3:$AX$41,33,FALSE) -> 4 | I21: =+VLOOKUP($A21,'Data Input'!$A$3:$AX$41,34,FALSE) -> 41 | J21: =+VLOOKUP($A21,'Data Input'!$A$3:$AX$41,35,FALSE) -> 5.94 | L21: =+VLOOKUP($A21,'Data Input'!$A$3:$AX$41,37,FALSE) -> 12
A22: 224 | B22: =+VLOOKUP(+$A22,'Data Input'!$A$3:$AX$41,2,FALSE) -> Anna | C22: =+VLOOKUP(+$A22,'Data Input'!$A$3:$AX$41,3,FALSE) -> R Branscombe | D22: =+VLOOKUP(+$A22,'Data Input'!$A$3:$AX$41,4,FALSE) -> 25 | E22: =+VLOOKUP(+$A22,'Data Input'!$A$3:$AX$41,5,FALSE) -> -10 | F22: =+VLOOKUP(+$A22,'Data Input'!$A$3:$AX$41,6,FALSE) -> 0 | G22: =+VLOOKUP(+$A22,'Data Input'!$A$3:$AX$41,7,FALSE) -> B | H22: =+VLOOKUP($A22,'Data Input'!$A$3:$AX$41,33,FALSE) -> 4 | I22: =+VLOOKUP($A22,'Data Input'!$A$3:$AX$41,34,FALSE) -> 40 | J22: =+VLOOKUP($A22,'Data Input'!$A$3:$AX$41,35,FALSE) -> 4.8 | L22: =+VLOOKUP($A22,'Data Input'!$A$3:$AX$41,37,FALSE) -> 10
A23: 240 | B23: =+VLOOKUP(+$A23,'Data Input'!$A$3:$AX$41,2,FALSE) -> Avocet | C23: =+VLOOKUP(+$A23,'Data Input'!$A$3:$AX$41,3,FALSE) -> R Branford | D23: =+VLOOKUP(+$A23,'Data Input'!$A$3:$AX$41,4,FALSE) -> 28 | E23: =+VLOOKUP(+$A23,'Data Input'!$A$3:$AX$41,5,FALSE) -> -16 | F23: =+VLOOKUP(+$A23,'Data Input'!$A$3:$AX$41,6,FALSE) -> W | G23: =+VLOOKUP(+$A23,'Data Input'!$A$3:$AX$41,7,FALSE) -> B | H23: =+VLOOKUP($A23,'Data Input'!$A$3:$AX$41,33,FALSE) -> 8 | I23: =+VLOOKUP($A23,'Data Input'!$A$3:$AX$41,34,FALSE) -> 2 | J23: =+VLOOKUP($A23,'Data Input'!$A$3:$AX$41,35,FALSE) -> 4.56 | L23: =+VLOOKUP($A23,'Data Input'!$A$3:$AX$41,37,FALSE) -> W
A24: 244 | B24: =+VLOOKUP(+$A24,'Data Input'!$A$3:$AX$41,2,FALSE) -> Catspaw | C24: =+VLOOKUP(+$A24,'Data Input'!$A$3:$AX$41,3,FALSE) -> B Wilkins | D24: =+VLOOKUP(+$A24,'Data Input'!$A$3:$AX$41,4,FALSE) -> 28 | E24: =+VLOOKUP(+$A24,'Data Input'!$A$3:$AX$41,5,FALSE) -> -4 | F24: =+VLOOKUP(+$A24,'Data Input'!$A$3:$AX$41,6,FALSE) -> 0 | G24: =+VLOOKUP(+$A24,'Data Input'!$A$3:$AX$41,7,FALSE) -> B | H24: =+VLOOKUP($A24,'Data Input'!$A$3:$AX$41,33,FALSE) -> 4 | I24: =+VLOOKUP($A24,'Data Input'!$A$3:$AX$41,34,FALSE) -> 40 | J24: =+VLOOKUP($A24,'Data Input'!$A$3:$AX$41,35,FALSE) -> 24 | L24: =+VLOOKUP($A24,'Data Input'!$A$3:$AX$41,37,FALSE) -> 11
A25: 262 | B25: =+VLOOKUP(+$A25,'Data Input'!$A$3:$AX$41,2,FALSE) -> Jessie May | C25: =+VLOOKUP(+$A25,'Data Input'!$A$3:$AX$41,3,FALSE) -> S Dugdale | D25: =+VLOOKUP(+$A25,'Data Input'!$A$3:$AX$41,4,FALSE) -> 28 | E25: =+VLOOKUP(+$A25,'Data Input'!$A$3:$AX$41,5,FALSE) -> -5 | F25: =+VLOOKUP(+$A25,'Data Input'!$A$3:$AX$41,6,FALSE) -> 0 | G25: =+VLOOKUP(+$A25,'Data Input'!$A$3:$AX$41,7,FALSE) -> B | H25: =+VLOOKUP($A25,'Data Input'!$A$3:$AX$41,33,FALSE) -> 4 | I25: =+VLOOKUP($A25,'Data Input'!$A$3:$AX$41,34,FALSE) -> 25 | J25: =+VLOOKUP($A25,'Data Input'!$A$3:$AX$41,35,FALSE) -> 44.8 | L25: =+VLOOKUP($A25,'Data Input'!$A$3:$AX$41,37,FALSE) -> 2
A26: 400 | B26: =+VLOOKUP(+$A26,'Data Input'!$A$3:$AX$41,2,FALSE) -> Swallow | C26: =+VLOOKUP(+$A26,'Data Input'!$A$3:$AX$41,3,FALSE) -> K Halifax | D26: =+VLOOKUP(+$A26,'Data Input'!$A$3:$AX$41,4,FALSE) -> 26.5 | E26: =+VLOOKUP(+$A26,'Data Input'!$A$3:$AX$41,5,FALSE) -> -7 | F26: =+VLOOKUP(+$A26,'Data Input'!$A$3:$AX$41,6,FALSE) ->  | G26: =+VLOOKUP(+$A26,'Data Input'!$A$3:$AX$41,7,FALSE) -> B | H26: =+VLOOKUP($A26,'Data Input'!$A$3:$AX$41,33,FALSE) -> 4 | I26: =+VLOOKUP($A26,'Data Input'!$A$3:$AX$41,34,FALSE) -> 42 | J26: =+VLOOKUP($A26,'Data Input'!$A$3:$AX$41,35,FALSE) -> 31.11 | L26: =+VLOOKUP($A26,'Data Input'!$A$3:$AX$41,37,FALSE) -> 13
A27: 416 | B27: =+VLOOKUP(+$A27,'Data Input'!$A$3:$AX$41,2,FALSE) -> Alice Rose | C27: =+VLOOKUP(+$A27,'Data Input'!$A$3:$AX$41,3,FALSE) -> D Radley | D27: =+VLOOKUP(+$A27,'Data Input'!$A$3:$AX$41,4,FALSE) -> 28.5 | E27: =+VLOOKUP(+$A27,'Data Input'!$A$3:$AX$41,5,FALSE) -> -7 | F27: =+VLOOKUP(+$A27,'Data Input'!$A$3:$AX$41,6,FALSE) -> W | G27: =+VLOOKUP(+$A27,'Data Input'!$A$3:$AX$41,7,FALSE) -> A | H27: =+VLOOKUP($A27,'Data Input'!$A$3:$AX$41,33,FALSE) -> 8 | I27: =+VLOOKUP($A27,'Data Input'!$A$3:$AX$41,34,FALSE) -> 35 | J27: =+VLOOKUP($A27,'Data Input'!$A$3:$AX$41,35,FALSE) -> 5.76 | L27: =+VLOOKUP($A27,'Data Input'!$A$3:$AX$41,37,FALSE) -> W
A28: 418 | B28: =+VLOOKUP(+$A28,'Data Input'!$A$3:$AX$41,2,FALSE) -> Tinkerbell | C28: =+VLOOKUP(+$A28,'Data Input'!$A$3:$AX$41,3,FALSE) -> A Lincoln | D28: =+VLOOKUP(+$A28,'Data Input'!$A$3:$AX$41,4,FALSE) -> 25.2 | E28: =+VLOOKUP(+$A28,'Data Input'!$A$3:$AX$41,5,FALSE) -> -7 | F28: =+VLOOKUP(+$A28,'Data Input'!$A$3:$AX$41,6,FALSE) ->  | G28: =+VLOOKUP(+$A28,'Data Input'!$A$3:$AX$41,7,FALSE) -> B | H28: =+VLOOKUP($A28,'Data Input'!$A$3:$AX$41,33,FALSE) -> 4 | I28: =+VLOOKUP($A28,'Data Input'!$A$3:$AX$41,34,FALSE) -> 38 | J28: =+VLOOKUP($A28,'Data Input'!$A$3:$AX$41,35,FALSE) -> 6.99 | L28: =+VLOOKUP($A28,'Data Input'!$A$3:$AX$41,37,FALSE) -> 8
A29: 79 | B29: =+VLOOKUP(+$A29,'Data Input'!$A$3:$AX$41,2,FALSE) -> Daisy | C29: =+VLOOKUP(+$A29,'Data Input'!$A$3:$AX$41,3,FALSE) -> T Ford | D29: =+VLOOKUP(+$A29,'Data Input'!$A$3:$AX$41,4,FALSE) -> 22 | E29: =+VLOOKUP(+$A29,'Data Input'!$A$3:$AX$41,5,FALSE) -> -21 | F29: =+VLOOKUP(+$A29,'Data Input'!$A$3:$AX$41,6,FALSE) -> 0 | G29: =+VLOOKUP(+$A29,'Data Input'!$A$3:$AX$41,7,FALSE) -> C | H29: =+VLOOKUP($A29,'Data Input'!$A$3:$AX$41,33,FALSE) -> 5 | I29: =+VLOOKUP($A29,'Data Input'!$A$3:$AX$41,34,FALSE) -> 31 | J29: =+VLOOKUP($A29,'Data Input'!$A$3:$AX$41,35,FALSE) -> 29.04 | L29: =+VLOOKUP($A29,'Data Input'!$A$3:$AX$41,37,FALSE) -> 21
A30: 87 | B30: =+VLOOKUP(+$A30,'Data Input'!$A$3:$AX$41,2,FALSE) -> Modwena | C30: =+VLOOKUP(+$A30,'Data Input'!$A$3:$AX$41,3,FALSE) -> M Cassidy | D30: =+VLOOKUP(+$A30,'Data Input'!$A$3:$AX$41,4,FALSE) -> 24.8 | E30: =+VLOOKUP(+$A30,'Data Input'!$A$3:$AX$41,5,FALSE) -> -19 | F30: =+VLOOKUP(+$A30,'Data Input'!$A$3:$AX$41,6,FALSE) -> 0 | G30: =+VLOOKUP(+$A30,'Data Input'!$A$3:$AX$41,7,FALSE) -> C | H30: =+VLOOKUP($A30,'Data Input'!$A$3:$AX$41,33,FALSE) -> 4 | I30: =+VLOOKUP($A30,'Data Input'!$A$3:$AX$41,34,FALSE) -> 32 | J30: =+VLOOKUP($A30,'Data Input'!$A$3:$AX$41,35,FALSE) -> 59.82 | L30: =+VLOOKUP($A30,'Data Input'!$A$3:$AX$41,37,FALSE) -> 4
A31: 155 | B31: =+VLOOKUP(+$A31,'Data Input'!$A$3:$AX$41,2,FALSE) -> Stratus | C31: =+VLOOKUP(+$A31,'Data Input'!$A$3:$AX$41,3,FALSE) -> J Townley | D31: =+VLOOKUP(+$A31,'Data Input'!$A$3:$AX$41,4,FALSE) -> 22.6 | E31: =+VLOOKUP(+$A31,'Data Input'!$A$3:$AX$41,5,FALSE) -> -17 | F31: =+VLOOKUP(+$A31,'Data Input'!$A$3:$AX$41,6,FALSE) -> W | G31: =+VLOOKUP(+$A31,'Data Input'!$A$3:$AX$41,7,FALSE) -> C | H31: =+VLOOKUP($A31,'Data Input'!$A$3:$AX$41,33,FALSE) -> 7 | I31: =+VLOOKUP($A31,'Data Input'!$A$3:$AX$41,34,FALSE) -> 32 | J31: =+VLOOKUP($A31,'Data Input'!$A$3:$AX$41,35,FALSE) -> 52.54 | L31: =+VLOOKUP($A31,'Data Input'!$A$3:$AX$41,37,FALSE) -> W
A32: 274 | B32: =+VLOOKUP(+$A32,'Data Input'!$A$3:$AX$41,2,FALSE) -> Elfin | C32: =+VLOOKUP(+$A32,'Data Input'!$A$3:$AX$41,3,FALSE) -> A Bond | D32: =+VLOOKUP(+$A32,'Data Input'!$A$3:$AX$41,4,FALSE) -> 21 | E32: =+VLOOKUP(+$A32,'Data Input'!$A$3:$AX$41,5,FALSE) -> -27 | F32: =+VLOOKUP(+$A32,'Data Input'!$A$3:$AX$41,6,FALSE) -> DNS | G32: =+VLOOKUP(+$A32,'Data Input'!$A$3:$AX$41,7,FALSE) -> C | H32: =+VLOOKUP($A32,'Data Input'!$A$3:$AX$41,33,FALSE) -> 0 | I32: =+VLOOKUP($A32,'Data Input'!$A$3:$AX$41,34,FALSE) -> 0 | J32: =+VLOOKUP($A32,'Data Input'!$A$3:$AX$41,35,FALSE) -> 0 | L32: =+VLOOKUP($A32,'Data Input'!$A$3:$AX$41,37,FALSE) -> DNS
A33: 429 | B33: =+VLOOKUP(+$A33,'Data Input'!$A$3:$AX$41,2,FALSE) -> Pickle | C33: =+VLOOKUP(+$A33,'Data Input'!$A$3:$AX$41,3,FALSE) -> P Montague | D33: =+VLOOKUP(+$A33,'Data Input'!$A$3:$AX$41,4,FALSE) -> 22.6 | E33: =+VLOOKUP(+$A33,'Data Input'!$A$3:$AX$41,5,FALSE) -> -17 | F33: =+VLOOKUP(+$A33,'Data Input'!$A$3:$AX$41,6,FALSE) -> 0 | G33: =+VLOOKUP(+$A33,'Data Input'!$A$3:$AX$41,7,FALSE) -> C | H33: =+VLOOKUP($A33,'Data Input'!$A$3:$AX$41,33,FALSE) -> 4 | I33: =+VLOOKUP($A33,'Data Input'!$A$3:$AX$41,34,FALSE) -> 52 | J33: =+VLOOKUP($A33,'Data Input'!$A$3:$AX$41,35,FALSE) -> 4.62 | L33: =+VLOOKUP($A33,'Data Input'!$A$3:$AX$41,37,FALSE) -> 17
A34: 109 | B34: =+VLOOKUP(+$A34,'Data Input'!$A$3:$AX$41,2,FALSE) -> Kingfisher | C34: =+VLOOKUP(+$A34,'Data Input'!$A$3:$AX$41,3,FALSE) -> J Flatman | D34: =+VLOOKUP(+$A34,'Data Input'!$A$3:$AX$41,4,FALSE) -> 24.5 | E34: =+VLOOKUP(+$A34,'Data Input'!$A$3:$AX$41,5,FALSE) -> -19 | F34: =+VLOOKUP(+$A34,'Data Input'!$A$3:$AX$41,6,FALSE) -> W | G34: =+VLOOKUP(+$A34,'Data Input'!$A$3:$AX$41,7,FALSE) -> C | H34: =+VLOOKUP($A34,'Data Input'!$A$3:$AX$41,33,FALSE) -> 7 | I34: =+VLOOKUP($A34,'Data Input'!$A$3:$AX$41,34,FALSE) -> 25 | J34: =+VLOOKUP($A34,'Data Input'!$A$3:$AX$41,35,FALSE) -> 30 | L34: =+VLOOKUP($A34,'Data Input'!$A$3:$AX$41,37,FALSE) -> W
A35: 141 | B35: =+VLOOKUP(+$A35,'Data Input'!$A$3:$AX$41,2,FALSE) -> Nirvana | C35: =+VLOOKUP(+$A35,'Data Input'!$A$3:$AX$41,3,FALSE) -> M Claridge | D35: =+VLOOKUP(+$A35,'Data Input'!$A$3:$AX$41,4,FALSE) -> 20 | E35: =+VLOOKUP(+$A35,'Data Input'!$A$3:$AX$41,5,FALSE) -> -23 | F35: =+VLOOKUP(+$A35,'Data Input'!$A$3:$AX$41,6,FALSE) -> P | G35: =+VLOOKUP(+$A35,'Data Input'!$A$3:$AX$41,7,FALSE) -> C | H35: =+VLOOKUP($A35,'Data Input'!$A$3:$AX$41,33,FALSE) -> 4 | I35: =+VLOOKUP($A35,'Data Input'!$A$3:$AX$41,34,FALSE) -> 47 | J35: =+VLOOKUP($A35,'Data Input'!$A$3:$AX$41,35,FALSE) -> 8.75 | L35: =+VLOOKUP($A35,'Data Input'!$A$3:$AX$41,37,FALSE) -> P
A42: =+COUNT(A3:A41) -> 33

Sheet Classes A
A1: Starlight Lady | I1: Corrected
A2: No | B2: Yacht | C2: Skipper | D2: Length | E2: H/C | F2: P | G2: Class | H2: H | I2: M | J2: S | L2: Pos
A3: 370 | B3: =+VLOOKUP(+$A3,'Data Input'!$A$3:$AX$41,2,FALSE) -> Glory | C3: =+VLOOKUP(+$A3,'Data Input'!$A$3:$AX$41,3,FALSE) -> C Brown | D3: =+VLOOKUP(+$A3,'Data Input'!$A$3:$AX$41,4,FALSE) -> 35 | E3: =+VLOOKUP(+$A3,'Data Input'!$A$3:$AX$41,5,FALSE) -> -6 | F3: =+VLOOKUP(+$A3,'Data Input'!$A$3:$AX$41,6,FALSE) ->  | G3: =+VLOOKUP(+$A3,'Data Input'!$A$3:$AX$41,7,FALSE) -> A | H3: =+VLOOKUP($A3,'Data Input'!$A$3:$AX$41,33,FALSE) -> 4 | I3: =+VLOOKUP($A3,'Data Input'!$A$3:$AX$41,34,FALSE) -> 21 | J3: =+VLOOKUP($A3,'Data Input'!$A$3:$AX$41,35,FALSE) -> 5.1 | L3: =+VLOOKUP($A3,'Data Input'!$A$3:$AX$41,37,FALSE) -> 1
A4: 368 | B4: =+VLOOKUP(+$A4,'Data Input'!$A$3:$AX$41,2,FALSE) -> Wandering Rose | C4: =+VLOOKUP(+$A4,'Data Input'!$A$3:$AX$41,3,FALSE) -> Radley | D4: =+VLOOKUP(+$A4,'Data Input'!$A$3:$AX$41,4,FALSE) -> 31 | E4: =+VLOOKUP(+$A4,'Data Input'!$A$3:$AX$41,5,FALSE) -> -2 | F4: =+VLOOKUP(+$A4,'Data Input'!$A$3:$AX$41,6,FALSE) -> 0 | G4: =+VLOOKUP(+$A4,'Data Input'!$A$3:$AX$41,7,FALSE) -> A | H4: =+VLOOKUP($A4,'Data Input'!$A$3:$AX$41,33,FALSE) -> 4 | I4: =+VLOOKUP($A4,'Data Input'!$A$3:$AX$41,34,FALSE) -> 27 | J4: =+VLOOKUP($A4,'Data Input'!$A$3:$AX$41,35,FALSE) -> 25.54 | L4: =L3+1 -> 2
A5: 323 | B5: =+VLOOKUP(+$A5,'Data Input'!$A$3:$AX$41,2,FALSE) -> Starlight Lady | C5: =+VLOOKUP(+$A5,'Data Input'!$A$3:$AX$41,3,FALSE) -> N.Matthews | D5: =+VLOOKUP(+$A5,'Data Input'!$A$3:$AX$41,4,FALSE) -> 30 | E5: =+VLOOKUP(+$A5,'Data Input'!$A$3:$AX$41,5,FALSE) -> 13 | F5: =+VLOOKUP(+$A5,'Data Input'!$A$3:$AX$41,6,FALSE) -> 0 | G5: =+VLOOKUP(+$A5,'Data Input'!$A$3:$AX$41,7,FALSE) -> A | H5: =+VLOOKUP($A5,'Data Input'!$A$3:$AX$41,33,FALSE) -> 4 | I5: =+VLOOKUP($A5,'Data Input'!$A$3:$AX$41,34,FALSE) -> 36 | J5: =+VLOOKUP($A5,'Data Input'!$A$3:$AX$41,35,FALSE) -> 52.13 | L5: =L4+1 -> 3
A6: 152 | B6: =+VLOOKUP(+$A6,'Data Input'!$A$3:$AX$41,2,FALSE) -> Sabrina 2 | C6: =+VLOOKUP(+$A6,'Data Input'!$A$3:$AX$41,3,FALSE) -> J Holmes | D6: =+VLOOKUP(+$A6,'Data Input'!$A$3:$AX$41,4,FALSE) -> 29 | E6: =+VLOOKUP(+$A6,'Data Input'!$A$3:$AX$41,5,FALSE) -> -7 | F6: =+VLOOKUP(+$A6,'Data Input'!$A$3:$AX$41,6,FALSE) -> 0 | G6: =+VLOOKUP(+$A6,'Data Input'!$A$3:$AX$41,7,FALSE) -> A | H6: =+VLOOKUP($A6,'Data Input'!$A$3:$AX$41,33,FALSE) -> 4 | I6: =+VLOOKUP($A6,'Data Input'!$A$3:$AX$41,34,FALSE) -> 36 | J6: =+VLOOKUP($A6,'Data Input'!$A$3:$AX$41,35,FALSE) -> 56.31 | L6: 4
A7: 10 | B7: =+VLOOKUP(+$A7,'Data Input'!$A$3:$AX$41,2,FALSE) -> Flight | C7: =+VLOOKUP(+$A7,'Data Input'!$A$3:$AX$41,3,FALSE) -> J Farrow | D7: =+VLOOKUP(+$A7,'Data Input'!$A$3:$AX$41,4,FALSE) -> 29.9 | E7: =+VLOOKUP(+$A7,'Data Input'!$A$3:$AX$41,5,FALSE) -> -8 | F7: =+VLOOKUP(+$A7,'Data Input'!$A$3:$AX$41,6,FALSE) -> 0 | G7: =+VLOOKUP(+$A7,'Data Input'!$A$3:$AX$41,7,FALSE) -> A | H7: =+VLOOKUP($A7,'Data Input'!$A$3:$AX$41,33,FALSE) -> 4 | I7: =+VLOOKUP($A7,'Data Input'!$A$3:$AX$41,34,FALSE) -> 45 | J7: =+VLOOKUP($A7,'Data Input'!$A$3:$AX$41,35,FALSE) -> 28.56 | L7: 5
A8: 369 | B8: =+VLOOKUP(+$A8,'Data Input'!$A$3:$AX$41,2,FALSE) -> Moonshadow | C8: =+VLOOKUP(+$A8,'Data Input'!$A$3:$AX$41,3,FALSE) -> N Hovey | D8: =+VLOOKUP(+$A8,'Data Input'!$A$3:$AX$41,4,FALSE) -> 31.5 | E8: =+VLOOKUP(+$A8,'Data Input'!$A$3:$AX$41,5,FALSE) -> 4 | F8: =+VLOOKUP(+$A8,'Data Input'!$A$3:$AX$41,6,FALSE) ->  | G8: =+VLOOKUP(+$A8,'Data Input'!$A$3:$AX$41,7,FALSE) -> A | H8: =+VLOOKUP($A8,'Data Input'!$A$3:$AX$41,33,FALSE) -> 4 | I8: =+VLOOKUP($A8,'Data Input'!$A$3:$AX$41,34,FALSE) -> 45 | J8: =+VLOOKUP($A8,'Data Input'!$A$3:$AX$41,35,FALSE) -> 34 | L8: 6
A9: 417 | B9: =+VLOOKUP(+$A9,'Data Input'!$A$3:$AX$41,2,FALSE) -> Stellar | C9: =+VLOOKUP(+$A9,'Data Input'!$A$3:$AX$41,3,FALSE) -> T Frary | D9: =+VLOOKUP(+$A9,'Data Input'!$A$3:$AX$41,4,FALSE) -> 31.3 | E9: =+VLOOKUP(+$A9,'Data Input'!$A$3:$AX$41,5,FALSE) -> 17 | F9: =+VLOOKUP(+$A9,'Data Input'!$A$3:$AX$41,6,FALSE) -> 0 | G9: =+VLOOKUP(+$A9,'Data Input'!$A$3:$AX$41,7,FALSE) -> A | H9: =+VLOOKUP($A9,'Data Input'!$A$3:$AX$41,33,FALSE) -> 4 | I9: =+VLOOKUP($A9,'Data Input'!$A$3:$AX$41,34,FALSE) -> 51 | J9: =+VLOOKUP($A9,'Data Input'!$A$3:$AX$41,35,FALSE) -> 38.52 | L9: 7
A10: 373 | B10: =+VLOOKUP(+$A10,'Data Input'!$A$3:$AX$41,2,FALSE) -> Meggie | C10: =+VLOOKUP(+$A10,'Data Input'!$A$3:$AX$41,3,FALSE) -> J Tansley | D10: =+VLOOKUP(+$A10,'Data Input'!$A$3:$AX$41,4,FALSE) -> 34.9 | E10: =+VLOOKUP(+$A10,'Data Input'!$A$3:$AX$41,5,FALSE) -> 13 | F10: =+VLOOKUP(+$A10,'Data Input'!$A$3:$AX$41,6,FALSE) ->  | G10: =+VLOOKUP(+$A10,'Data Input'!$A$3:$AX$41,7,FALSE) -> A | H10: =+VLOOKUP($A10,'Data Input'!$A$3:$AX$41,33,FALSE) -> 5 | I10: =+VLOOKUP($A10,'Data Input'!$A$3:$AX$41,34,FALSE) -> 4 | J10: =+VLOOKUP($A10,'Data Input'!$A$3:$AX$41,35,FALSE) -> 21.93 | L10: 8
A11: 22 | B11: =+VLOOKUP(+$A11,'Data Input'!$A$3:$AX$41,2,FALSE) -> Moonraker | C11: =+VLOOKUP(+$A11,'Data Input'!$A$3:$AX$41,3,FALSE) -> P Jeckells | D11: =+VLOOKUP(+$A11,'Data Input'!$A$3:$AX$41,4,FALSE) -> 29.5 | E11: =+VLOOKUP(+$A11,'Data Input'!$A$3:$AX$41,5,FALSE) -> 2 | F11: =+VLOOKUP(+$A11,'Data Input'!$A$3:$AX$41,6,FALSE) -> DNS | G11: =+VLOOKUP(+$A11,'Data Input'!$A$3:$AX$41,7,FALSE) -> A | H11: =+VLOOKUP($A11,'Data Input'!$A$3:$AX$41,33,FALSE) -> 0 | I11: =+VLOOKUP($A11,'Data Input'!$A$3:$AX$41,34,FALSE) -> 0 | J11: =+VLOOKUP($A11,'Data Input'!$A$3:$AX$41,35,FALSE) -> 0 | L11: =+VLOOKUP($A11,'Data Input'!$A$3:$AX$41,37,FALSE) -> DNS
A12: 52 | B12: =+VLOOKUP(+$A12,'Data Input'!$A$3:$AX$41,2,FALSE) -> Maidie | C12: =+VLOOKUP(+$A12,'Data Input'!$A$3:$AX$41,3,FALSE) -> M Barnes | D12: =+VLOOKUP(+$A12,'Data Input'!$A$3:$AX$41,4,FALSE) -> 43.2 | E12: =+VLOOKUP(+$A12,'Data Input'!$A$3:$AX$41,5,FALSE) -> 13 | F12: =+VLOOKUP(+$A12,'Data Input'!$A$3:$AX$41,6,FALSE) -> DNS | G12: =+VLOOKUP(+$A12,'Data Input'!$A$3:$AX$41,7,FALSE) -> A | H12: =+VLOOKUP($A12,'Data Input'!$A$3:$AX$41,33,FALSE) -> 0 | I12: =+VLOOKUP($A12,'Data Input'!$A$3:$AX$41,34,FALSE) -> 0 | J12: =+VLOOKUP($A12,'Data Input'!$A$3:$AX$41,35,FALSE) -> 0 | L12: =+VLOOKUP($A12,'Data Input'!$A$3:$AX$41,37,FALSE) -> DNS
A13: 335 | B13: =+VLOOKUP(+$A13,'Data Input'!$A$3:$AX$41,2,FALSE) -> Firebird | C13: =+VLOOKUP(+$A13,'Data Input'!$A$3:$AX$41,3,FALSE) -> R Richardson | D13: =+VLOOKUP(+$A13,'Data Input'!$A$3:$AX$41,4,FALSE) -> 30 | E13: =+VLOOKUP(+$A13,'Data Input'!$A$3:$AX$41,5,FALSE) -> 1 | F13: =+VLOOKUP(+$A13,'Data Input'!$A$3:$AX$41,6,FALSE) -> DNS | G13: =+VLOOKUP(+$A13,'Data Input'!$A$3:$AX$41,7,FALSE) -> A | H13: =+VLOOKUP($A13,'Data Input'!$A$3:$AX$41,33,FALSE) -> 0 | I13: =+VLOOKUP($A13,'Data Input'!$A$3:$AX$41,34,FALSE) -> 0 | J13: =+VLOOKUP($A13,'Data Input'!$A$3:$AX$41,35,FALSE) -> 0 | L13: =+VLOOKUP($A13,'Data Input'!$A$3:$AX$41,37,FALSE) -> DNS
A14: 6 | B14: =+VLOOKUP(+$A14,'Data Input'!$A$3:$AX$41,2,FALSE) -> Dragonfly | C14: =+VLOOKUP(+$A14,'Data Input'!$A$3:$AX$41,3,FALSE) -> S Simpson | D14: =+VLOOKUP(+$A14,'Data Input'!$A$3:$AX$41,4,FALSE) -> 38 | E14: =+VLOOKUP(+$A14,'Data Input'!$A$3:$AX$41,5,FALSE) -> -13 | F14: =+VLOOKUP(+$A14,'Data Input'!$A$3:$AX$41,6,FALSE) -> W | G14: =+VLOOKUP(+$A14,'Data Input'!$A$3:$AX$41,7,FALSE) -> A | H14: =+VLOOKUP($A14,'Data Input'!$A$3:$AX$41,33,FALSE) -> 8 | I14: =+VLOOKUP($A14,'Data Input'!$A$3:$AX$41,34,FALSE) -> 54 | J14: =+VLOOKUP($A14,'Data Input'!$A$3:$AX$41,35,FALSE) -> 40.38 | L14: =+VLOOKUP($A14,'Data Input'!$A$3:$AX$41,37,FALSE) -> W
A15: 177 | B15: =+VLOOKUP(+$A15,'Data Input'!$A$3:$AX$41,2,FALSE) -> Breeze | C15: =+VLOOKUP(+$A15,'Data Input'!$A$3:$AX$41,3,FALSE) -> M Ellis | D15: =+VLOOKUP(+$A15,'Data Input'!$A$3:$AX$41,4,FALSE) -> 32 | E15: =+VLOOKUP(+$A15,'Data Input'!$A$3:$AX$41,5,FALSE) -> 3 | F15: =+VLOOKUP(+$A15,'Data Input'!$A$3:$AX$41,6,FALSE) -> W | G15: =+VLOOKUP(+$A15,'Data Input'!$A$3:$AX$41,7,FALSE) -> A | H15: =+VLOOKUP($A15,'Data Input'!$A$3:$AX$41,33,FALSE) -> 9 | I15: =+VLOOKUP($A15,'Data Input'!$A$3:$AX$41,34,FALSE) -> 32 | J15: =+VLOOKUP($A15,'Data Input'!$A$3:$AX$41,35,FALSE) -> 18.14 | L15: =+VLOOKUP($A15,'Data Input'!$A$3:$AX$41,37,FALSE) -> W
A16: 219 | B16: =+VLOOKUP(+$A16,'Data Input'!$A$3:$AX$41,2,FALSE) -> Farthing | C16: =+VLOOKUP(+$A16,'Data Input'!$A$3:$AX$41,3,FALSE) -> M Farrar | D16: =+VLOOKUP(+$A16,'Data Input'!$A$3:$AX$41,4,FALSE) -> 36 | E16: =+VLOOKUP(+$A16,'Data Input'!$A$3:$AX$41,5,FALSE) -> 3 | F16: =+VLOOKUP(+$A16,'Data Input'!$A$3:$AX$41,6,FALSE) -> W | G16: =+VLOOKUP(+$A16,'Data Input'!$A$3:$AX$41,7,FALSE) -> A | H16: =+VLOOKUP($A16,'Data Input'!$A$3:$AX$41,33,FALSE) -> 9 | I16: =+VLOOKUP($A16,'Data Input'!$A$3:$AX$41,34,FALSE) -> 59 | J16: =+VLOOKUP($A16,'Data Input'!$A$3:$AX$41,35,FALSE) -> 43.05 | L16: =+VLOOKUP($A16,'Data Input'!$A$3:$AX$41,37,FALSE) -> W
A17: 416 | B17: =+VLOOKUP(+$A17,'Data Input'!$A$3:$AX$41,2,FALSE) -> Alice Rose | C17: =+VLOOKUP(+$A17,'Data Input'!$A$3:$AX$41,3,FALSE) -> D Radley | D17: =+VLOOKUP(+$A17,'Data Input'!$A$3:$AX$41,4,FALSE) -> 28.5 | E17: =+VLOOKUP(+$A17,'Data Input'!$A$3:$AX$41,5,FALSE) -> -7 | F17: =+VLOOKUP(+$A17,'Data Input'!$A$3:$AX$41,6,FALSE) -> W | G17: =+VLOOKUP(+$A17,'Data Input'!$A$3:$AX$41,7,FALSE) -> A | H17: =+VLOOKUP($A17,'Data Input'!$A$3:$AX$41,33,FALSE) -> 8 | I17: =+VLOOKUP($A17,'Data Input'!$A$3:$AX$41,34,FALSE) -> 35 | J17: =+VLOOKUP($A17,'Data Input'!$A$3:$AX$41,35,FALSE) -> 5.76 | L17: =+VLOOKUP($A17,'Data Input'!$A$3:$AX$41,37,FALSE) -> W
A25: =+COUNT(A3:A24) -> 15

Sheet Classes B
A1: Jeckells | I1: Corrected
A2: No | B2: Yacht | C2: Skipper | D2: Length | E2: H/C | F2: P | G2: Class | H2: H | I2: M | J2: S | L2: Pos
A3: 262 | B3: =+VLOOKUP(+$A3,'Data Input'!$A$3:$AX$41,2,FALSE) -> Jessie May | C3: =+VLOOKUP(+$A3,'Data Input'!$A$3:$AX$41,3,FALSE) -> S Dugdale | D3: =+VLOOKUP(+$A3,'Data Input'!$A$3:$AX$41,4,FALSE) -> 28 | E3: =+VLOOKUP(+$A3,'Data Input'!$A$3:$AX$41,5,FALSE) -> -5 | F3: =+VLOOKUP(+$A3,'Data Input'!$A$3:$AX$41,6,FALSE) -> 0 | G3: =+VLOOKUP(+$A3,'Data Input'!$A$3:$AX$41,7,FALSE) -> B | H3: =+VLOOKUP($A3,'Data Input'!$A$3:$AX$41,33,FALSE) -> 4 | I3: =+VLOOKUP($A3,'Data Input'!$A$3:$AX$41,34,FALSE) -> 25 | J3: =+VLOOKUP($A3,'Data Input'!$A$3:$AX$41,35,FALSE) -> 44.8 | L3: 1
A4: 179 | B4: =+VLOOKUP(+$A4,'Data Input'!$A$3:$AX$41,2,FALSE) -> Waxwing | C4: =+VLOOKUP(+$A4,'Data Input'!$A$3:$AX$41,3,FALSE) -> S Clayton | D4: =+VLOOKUP(+$A4,'Data Input'!$A$3:$AX$41,4,FALSE) -> 28 | E4: =+VLOOKUP(+$A4,'Data Input'!$A$3:$AX$41,5,FALSE) -> -8 | F4: =+VLOOKUP(+$A4,'Data Input'!$A$3:$AX$41,6,FALSE) -> 0 | G4: =+VLOOKUP(+$A4,'Data Input'!$A$3:$AX$41,7,FALSE) -> B | H4: =+VLOOKUP($A4,'Data Input'!$A$3:$AX$41,33,FALSE) -> 4 | I4: =+VLOOKUP($A4,'Data Input'!$A$3:$AX$41,34,FALSE) -> 34 | J4: =+VLOOKUP($A4,'Data Input'!$A$3:$AX$41,35,FALSE) -> 17.88 | L4: =L3+1 -> 2
A5: 418 | B5: =+VLOOKUP(+$A5,'Data Input'!$A$3:$AX$41,2,FALSE) -> Tinkerbell | C5: =+VLOOKUP(+$A5,'Data Input'!$A$3:$AX$41,3,FALSE) -> A Lincoln | D5: =+VLOOKUP(+$A5,'Data Input'!$A$3:$AX$41,4,FALSE) -> 25.2 | E5: =+VLOOKUP(+$A5,'Data Input'!$A$3:$AX$41,5,FALSE) -> -7 | F5: =+VLOOKUP(+$A5,'Data Input'!$A$3:$AX$41,6,FALSE) ->  | G5: =+VLOOKUP(+$A5,'Data Input'!$A$3:$AX$41,7,FALSE) -> B | H5: =+VLOOKUP($A5,'Data Input'!$A$3:$AX$41,33,FALSE) -> 4 | I5: =+VLOOKUP($A5,'Data Input'!$A$3:$AX$41,34,FALSE) -> 38 | J5: =+VLOOKUP($A5,'Data Input'!$A$3:$AX$41,35,FALSE) -> 6.99 | L5: =L4+1 -> 3
A6: 199 | B6: =+VLOOKUP(+$A6,'Data Input'!$A$3:$AX$41,2,FALSE) -> Morning Calm | C6: =+VLOOKUP(+$A6,'Data Input'!$A$3:$AX$41,3,FALSE) -> W Clark | D6: =+VLOOKUP(+$A6,'Data Input'!$A$3:$AX$41,4,FALSE) -> 26 | E6: =+VLOOKUP(+$A6,'Data Input'!$A$3:$AX$41,5,FALSE) -> -9 | F6: =+VLOOKUP(+$A6,'Data Input'!$A$3:$AX$41,6,FALSE) -> 0 | G6: =+VLOOKUP(+$A6,'Data Input'!$A$3:$AX$41,7,FALSE) -> B | H6: =+VLOOKUP($A6,'Data Input'!$A$3:$AX$41,33,FALSE) -> 4 | I6: =+VLOOKUP($A6,'Data Input'!$A$3:$AX$41,34,FALSE) -> 39 | J6: =+VLOOKUP($A6,'Data Input'!$A$3:$AX$41,35,FALSE) -> 26.75 | L6: 4
A7: 224 | B7: =+VLOOKUP(+$A7,'Data Input'!$A$3:$AX$41,2,FALSE) -> Anna | C7: =+VLOOKUP(+$A7,'Data Input'!$A$3:$AX$41,3,FALSE) -> R Branscombe | D7: =+VLOOKUP(+$A7,'Data Input'!$A$3:$AX$41,4,FALSE) -> 25 | E7: =+VLOOKUP(+$A7,'Data Input'!$A$3:$AX$41,5,FALSE) -> -10 | F7: =+VLOOKUP(+$A7,'Data Input'!$A$3:$AX$41,6,FALSE) -> 0 | G7: =+VLOOKUP(+$A7,'Data Input'!$A$3:$AX$41,7,FALSE) -> B | H7: =+VLOOKUP($A7,'Data Input'!$A$3:$AX$41,33,FALSE) -> 4 | I7: =+VLOOKUP($A7,'Data Input'!$A$3:$AX$41,34,FALSE) -> 40 | J7: =+VLOOKUP($A7,'Data Input'!$A$3:$AX$41,35,FALSE) -> 4.8 | L7: 5
A8: 244 | B8: =+VLOOKUP(+$A8,'Data Input'!$A$3:$AX$41,2,FALSE) -> Catspaw | C8: =+VLOOKUP(+$A8,'Data Input'!$A$3:$AX$41,3,FALSE) -> B Wilkins | D8: =+VLOOKUP(+$A8,'Data Input'!$A$3:$AX$41,4,FALSE) -> 28 | E8: =+VLOOKUP(+$A8,'Data Input'!$A$3:$AX$41,5,FALSE) -> -4 | F8: =+VLOOKUP(+$A8,'Data Input'!$A$3:$AX$41,6,FALSE) -> 0 | G8: =+VLOOKUP(+$A8,'Data Input'!$A$3:$AX$41,7,FALSE) -> B | H8: =+VLOOKUP($A8,'Data Input'!$A$3:$AX$41,33,FALSE) -> 4 | I8: =+VLOOKUP($A8,'Data Input'!$A$3:$AX$41,34,FALSE) -> 40 | J8: =+VLOOKUP($A8,'Data Input'!$A$3:$AX$41,35,FALSE) -> 24 | L8: 6
A9: 218 | B9: =+VLOOKUP(+$A9,'Data Input'!$A$3:$AX$41,2,FALSE) -> Mystery | C9: =+VLOOKUP(+$A9,'Data Input'!$A$3:$AX$41,3,FALSE) -> M Ford | D9: =+VLOOKUP(+$A9,'Data Input'!$A$3:$AX$41,4,FALSE) -> 26 | E9: =+VLOOKUP(+$A9,'Data Input'!$A$3:$AX$41,5,FALSE) -> -9 | F9: =+VLOOKUP(+$A9,'Data Input'!$A$3:$AX$41,6,FALSE) -> 0 | G9: =+VLOOKUP(+$A9,'Data Input'!$A$3:$AX$41,7,FALSE) -> B | H9: =+VLOOKUP($A9,'Data Input'!$A$3:$AX$41,33,FALSE) -> 4 | I9: =+VLOOKUP($A9,'Data Input'!$A$3:$AX$41,34,FALSE) -> 41 | J9: =+VLOOKUP($A9,'Data Input'!$A$3:$AX$41,35,FALSE) -> 5.94 | L9: 7
A10: 400 | B10: =+VLOOKUP(+$A10,'Data Input'!$A$3:$AX$41,2,FALSE) -> Swallow | C10: =+VLOOKUP(+$A10,'Data Input'!$A$3:$AX$41,3,FALSE) -> K Halifax | D10: =+VLOOKUP(+$A10,'Data Input'!$A$3:$AX$41,4,FALSE) -> 26.5 | E10: =+VLOOKUP(+$A10,'Data Input'!$A$3:$AX$41,5,FALSE) -> -7 | F10: =+VLOOKUP(+$A10,'Data Input'!$A$3:$AX$41,6,FALSE) ->  | G10: =+VLOOKUP(+$A10,'Data Input'!$A$3:$AX$41,7,FALSE) -> B | H10: =+VLOOKUP($A10,'Data Input'!$A$3:$AX$41,33,FALSE) -> 4 | I10: =+VLOOKUP($A10,'Data Input'!$A$3:$AX$41,34,FALSE) -> 42 | J10: =+VLOOKUP($A10,'Data Input'!$A$3:$AX$41,35,FALSE) -> 31.11 | L10: 8
A11: 25 | B11: =+VLOOKUP(+$A11,'Data Input'!$A$3:$AX$41,2,FALSE) -> Melody | C11: =+VLOOKUP(+$A11,'Data Input'!$A$3:$AX$41,3,FALSE) -> M Wells | D11: =+VLOOKUP(+$A11,'Data Input'!$A$3:$AX$41,4,FALSE) -> 26 | E11: =+VLOOKUP(+$A11,'Data Input'!$A$3:$AX$41,5,FALSE) -> -10 | F11: =+VLOOKUP(+$A11,'Data Input'!$A$3:$AX$41,6,FALSE) -> 0 | G11: =+VLOOKUP(+$A11,'Data Input'!$A$3:$AX$41,7,FALSE) -> B | H11: =+VLOOKUP($A11,'Data Input'!$A$3:$AX$41,33,FALSE) -> 4 | I11: =+VLOOKUP($A11,'Data Input'!$A$3:$AX$41,34,FALSE) -> 56 | J11: =+VLOOKUP($A11,'Data Input'!$A$3:$AX$41,35,FALSE) -> 57.3 | L11: 9
A12: 217 | B12: =+VLOOKUP(+$A12,'Data Input'!$A$3:$AX$41,2,FALSE) -> Melinda | C12: =+VLOOKUP(+$A12,'Data Input'!$A$3:$AX$41,3,FALSE) -> P Howes | D12: =+VLOOKUP(+$A12,'Data Input'!$A$3:$AX$41,4,FALSE) -> 27.9 | E12: =+VLOOKUP(+$A12,'Data Input'!$A$3:$AX$41,5,FALSE) -> 1 | F12: =+VLOOKUP(+$A12,'Data Input'!$A$3:$AX$41,6,FALSE) -> 0 | G12: =+VLOOKUP(+$A12,'Data Input'!$A$3:$AX$41,7,FALSE) -> B | H12: =+VLOOKUP($A12,'Data Input'!$A$3:$AX$41,33,FALSE) -> 5 | I12: =+VLOOKUP($A12,'Data Input'!$A$3:$AX$41,34,FALSE) -> 1 | J12: =+VLOOKUP($A12,'Data Input'!$A$3:$AX$41,35,FALSE) -> 38.19 | L12: 10
A13: 240 | B13: =+VLOOKUP(+$A13,'Data Input'!$A$3:$AX$41,2,FALSE) -> Avocet | C13: =+VLOOKUP(+$A13,'Data Input'!$A$3:$AX$41,3,FALSE) -> R Branford | D13: =+VLOOKUP(+$A13,'Data Input'!$A$3:$AX$41,4,FALSE) -> 28 | E13: =+VLOOKUP(+$A13,'Data Input'!$A$3:$AX$41,5,FALSE) -> -16 | F13: =+VLOOKUP(+$A13,'Data Input'!$A$3:$AX$41,6,FALSE) -> W | G13: =+VLOOKUP(+$A13,'Data Input'!$A$3:$AX$41,7,FALSE) -> B | H13: =+VLOOKUP($A13,'Data Input'!$A$3:$AX$41,33,FALSE) -> 8 | I13: =+VLOOKUP($A13,'Data Input'!$A$3:$AX$41,34,FALSE) -> 2 | J13: =+VLOOKUP($A13,'Data Input'!$A$3:$AX$41,35,FALSE) -> 4.56 | L13: =+VLOOKUP($A13,'Data Input'!$A$3:$AX$41,37,FALSE) -> W
A23: =+COUNT(A3:A22) -> 11

Sheet Classes C
A1: Wilberforce Smith | I1: Corrected
A2: No | B2: Yacht | C2: Skipper | D2: Length | E2: H/C | F2: P | G2: Class | H2: H | I2: M | J2: S | L2: Pos
A3: 87 | B3: =+VLOOKUP(+$A3,'Data Input'!$A$3:$AX$41,2,FALSE) -> Modwena | C3: =+VLOOKUP(+$A3,'Data Input'!$A$3:$AX$41,3,FALSE) -> M Cassidy | D3: =+VLOOKUP(+$A3,'Data Input'!$A$3:$AX$41,4,FALSE) -> 24.8 | E3: =+VLOOKUP(+$A3,'Data Input'!$A$3:$AX$41,5,FALSE) -> -19 | F3: =+VLOOKUP(+$A3,'Data Input'!$A$3:$AX$41,6,FALSE) -> 0 | G3: =+VLOOKUP(+$A3,'Data Input'!$A$3:$AX$41,7,FALSE) -> C | H3: =+VLOOKUP($A3,'Data Input'!$A$3:$AX$41,33,FALSE) -> 4 | I3: =+VLOOKUP($A3,'Data Input'!$A$3:$AX$41,34,FALSE) -> 32 | J3: =+VLOOKUP($A3,'Data Input'!$A$3:$AX$41,35,FALSE) -> 59.82 | L3: 1
A4: 429 | B4: =+VLOOKUP(+$A4,'Data Input'!$A$3:$AX$41,2,FALSE) -> Pickle | C4: =+VLOOKUP(+$A4,'Data Input'!$A$3:$AX$41,3,FALSE) -> P Montague | D4: =+VLOOKUP(+$A4,'Data Input'!$A$3:$AX$41,4,FALSE) -> 22.6 | E4: =+VLOOKUP(+$A4,'Data Input'!$A$3:$AX$41,5,FALSE) -> -17 | F4: =+VLOOKUP(+$A4,'Data Input'!$A$3:$AX$41,6,FALSE) -> 0 | G4: =+VLOOKUP(+$A4,'Data Input'!$A$3:$AX$41,7,FALSE) -> C | H4: =+VLOOKUP($A4,'Data Input'!$A$3:$AX$41,33,FALSE) -> 4 | I4: =+VLOOKUP($A4,'Data Input'!$A$3:$AX$41,34,FALSE) -> 52 | J4: =+VLOOKUP($A4,'Data Input'!$A$3:$AX$41,35,FALSE) -> 4.62 | L4: =L3+1 -> 2
A5: 79 | B5: =+VLOOKUP(+$A5,'Data Input'!$A$3:$AX$41,2,FALSE) -> Daisy | C5: =+VLOOKUP(+$A5,'Data Input'!$A$3:$AX$41,3,FALSE) -> T Ford | D5: =+VLOOKUP(+$A5,'Data Input'!$A$3:$AX$41,4,FALSE) -> 22 | E5: =+VLOOKUP(+$A5,'Data Input'!$A$3:$AX$41,5,FALSE) -> -21 | F5: =+VLOOKUP(+$A5,'Data Input'!$A$3:$AX$41,6,FALSE) -> 0 | G5: =+VLOOKUP(+$A5,'Data Input'!$A$3:$AX$41,7,FALSE) -> C | H5: =+VLOOKUP($A5,'Data Input'!$A$3:$AX$41,33,FALSE) -> 5 | I5: =+VLOOKUP($A5,'Data Input'!$A$3:$AX$41,34,FALSE) -> 31 | J5: =+VLOOKUP($A5,'Data Input'!$A$3:$AX$41,35,FALSE) -> 29.04 | L5: =L4+1 -> 3
A6: 274 | B6: =+VLOOKUP(+$A6,'Data Input'!$A$3:$AX$41,2,FALSE) -> Elfin | C6: =+VLOOKUP(+$A6,'Data Input'!$A$3:$AX$41,3,FALSE) -> A Bond | D6: =+VLOOKUP(+$A6,'Data Input'!$A$3:$AX$41,4,FALSE) -> 21 | E6: =+VLOOKUP(+$A6,'Data Input'!$A$3:$AX$41,5,FALSE) -> -27 | F6: =+VLOOKUP(+$A6,'Data Input'!$A$3:$AX$41,6,FALSE) -> DNS | G6: =+VLOOKUP(+$A6,'Data Input'!$A$3:$AX$41,7,FALSE) -> C | H6: =+VLOOKUP($A6,'Data Input'!$A$3:$AX$41,33,FALSE) -> 0 | I6: =+VLOOKUP($A6,'Data Input'!$A$3:$AX$41,34,FALSE) -> 0 | J6: =+VLOOKUP($A6,'Data Input'!$A$3:$AX$41,35,FALSE) -> 0 | L6: =+VLOOKUP($A6,'Data Input'!$A$3:$AX$41,37,FALSE) -> DNS
A7: 141 | B7: =+VLOOKUP(+$A7,'Data Input'!$A$3:$AX$41,2,FALSE) -> Nirvana | C7: =+VLOOKUP(+$A7,'Data Input'!$A$3:$AX$41,3,FALSE) -> M Claridge | D7: =+VLOOKUP(+$A7,'Data Input'!$A$3:$AX$41,4,FALSE) -> 20 | E7: =+VLOOKUP(+$A7,'Data Input'!$A$3:$AX$41,5,FALSE) -> -23 | F7: =+VLOOKUP(+$A7,'Data Input'!$A$3:$AX$41,6,FALSE) -> P | G7: =+VLOOKUP(+$A7,'Data Input'!$A$3:$AX$41,7,FALSE) -> C | H7: =+VLOOKUP($A7,'Data Input'!$A$3:$AX$41,33,FALSE) -> 4 | I7: =+VLOOKUP($A7,'Data Input'!$A$3:$AX$41,34,FALSE) -> 47 | J7: =+VLOOKUP($A7,'Data Input'!$A$3:$AX$41,35,FALSE) -> 8.75 | L7: =+VLOOKUP($A7,'Data Input'!$A$3:$AX$41,37,FALSE) -> P
A8: 155 | B8: =+VLOOKUP(+$A8,'Data Input'!$A$3:$AX$41,2,FALSE) -> Stratus | C8: =+VLOOKUP(+$A8,'Data Input'!$A$3:$AX$41,3,FALSE) -> J Townley | D8: =+VLOOKUP(+$A8,'Data Input'!$A$3:$AX$41,4,FALSE) -> 22.6 | E8: =+VLOOKUP(+$A8,'Data Input'!$A$3:$AX$41,5,FALSE) -> -17 | F8: =+VLOOKUP(+$A8,'Data Input'!$A$3:$AX$41,6,FALSE) -> W | G8: =+VLOOKUP(+$A8,'Data Input'!$A$3:$AX$41,7,FALSE) -> C | H8: =+VLOOKUP($A8,'Data Input'!$A$3:$AX$41,33,FALSE) -> 7 | I8: =+VLOOKUP($A8,'Data Input'!$A$3:$AX$41,34,FALSE) -> 32 | J8: =+VLOOKUP($A8,'Data Input'!$A$3:$AX$41,35,FALSE) -> 52.54 | L8: =+VLOOKUP($A8,'Data Input'!$A$3:$AX$41,37,FALSE) -> W
A9: 109 | B9: =+VLOOKUP(+$A9,'Data Input'!$A$3:$AX$41,2,FALSE) -> Kingfisher | C9: =+VLOOKUP(+$A9,'Data Input'!$A$3:$AX$41,3,FALSE) -> J Flatman | D9: =+VLOOKUP(+$A9,'Data Input'!$A$3:$AX$41,4,FALSE) -> 24.5 | E9: =+VLOOKUP(+$A9,'Data Input'!$A$3:$AX$41,5,FALSE) -> -19 | F9: =+VLOOKUP(+$A9,'Data Input'!$A$3:$AX$41,6,FALSE) -> W | G9: =+VLOOKUP(+$A9,'Data Input'!$A$3:$AX$41,7,FALSE) -> C | H9: =+VLOOKUP($A9,'Data Input'!$A$3:$AX$41,33,FALSE) -> 7 | I9: =+VLOOKUP($A9,'Data Input'!$A$3:$AX$41,34,FALSE) -> 25 | J9: =+VLOOKUP($A9,'Data Input'!$A$3:$AX$41,35,FALSE) -> 30 | L9: =+VLOOKUP($A9,'Data Input'!$A$3:$AX$41,37,FALSE) -> W
A15: =+COUNT(A3:A14) -> 7
